Workbook

Sheet 高中语文
A1: 高 中 语 文 总 成 绩
A2: 名次 | B2: 准考证号 | C2: 姓名 | D2: 笔试成绩 | E2: 笔试折合成绩 | F2: 教学技能测试原始成绩 | G2: 教学技能测试折合成绩 | H2: 总成绩
A3: 1 | B3: 20161010107 | C3: 郑晓波 | D3: 70.50 | E3: =D3*0.4 -> 28.2 | F3: 88 | G3: =F3*0.6 -> 52.8 | H3: =E3+G3 -> 81
A4: 2 | B4: 20161010126 | C4: 冯梦君 | D4: 76.50 | E4: =D4*0.4 -> 30.6 | F4: 83.8 | G4: =F4*0.6 -> 50.28 | H4: =E4+G4 -> 80.88
A5: 3 | B5: 20161010203 | C5: 武云云 | D5: 78.50 | E5: 31.4 | F5: 80 | G5: 48 | H5: 79.4
A6: 4 | B6: 20161010102 | C6: 刘亚静 | D6: 71.50 | E6: 28.6 | F6: 84.6 | G6: 50.76 | H6: 79.36
A7: 5 | B7: 20161010204 | C7: 王美莉 | D7: 73.50 | E7: 29.4 | F7: 83 | G7: 49.8 | H7: 79.2
A8: 6 | B8: 20161010108 | C8: 刘跃丹 | D8: 71.00 | E8: 28.4 | F8: 84.6 | G8: 50.76 | H8: 79.16
A9: 7 | B9: 20161010209 | C9: 尚海青 | D9: 70.50 | E9: 28.2 | F9: 84.8 | G9: 50.88 | H9: 79.08
A10: 8 | B10: 20161010121 | C10: 冯玥 | D10: 72.00 | E10: 28.8 | F10: 83.6 | G10: 50.16 | H10: 78.96
A11: 9 | B11: 20161010109 | C11: 杨普 | D11: 70.50 | E11: 28.2 | F11: 83.8 | G11: 50.28 | H11: 78.48
A12: 10 | B12: 20161010128 | C12: 崔颖颖 | D12: 70.50 | E12: 28.2 | F12: 83.2 | G12: 49.92 | H12: 78.12
A13: 11 | B13: 20161010214 | C13: 刘庆阳 | D13: 68.00 | E13: 27.2 | F13: 83 | G13: 49.8 | H13: 77
A14: 12 | B14: 20161010130 | C14: 弋孟君 | D14: 68.00 | E14: 27.2 | F14: 82.8 | G14: 49.68 | H14: 76.88
A15: 13 | B15: 20161010124 | C15: 张国龙 | D15: 68.00 | E15: 27.2 | F15: 80.8 | G15: 48.48 | H15: 75.68
A16: 14 | B16: 20161010202 | C16: 王梓润 | D16: 78.50 | E16: 31.4 | F16: 缺考

Sheet 高中英语
A1: 高 中 英 语 总 成 绩
A2: 名次 | B2: 准考证号 | C2: 姓名 | D2: 笔试成绩 | E2: 笔试折合成绩 | F2: 教学技能测试原始成绩 | G2: 教学技能测试折合成绩 | H2: 总成绩
A3: 1 | B3: 20161030318 | C3: 邓文杰 | D3: 72.50 | E3: =D3*0.4 -> 29 | F3: 85.8 | G3: =F3*0.6 -> 51.48 | H3: =E3+G3 -> 80.48
A4: 2 | B4: 20161030305 | C4: 刘晖 | D4: 70.00 | E4: =D4*0.4 -> 28 | F4: 87.2 | G4: =F4*0.6 -> 52.32 | H4: =E4+G4 -> 80.32
A5: 3 | B5: 20161030325 | C5: 高佳 | D5: 70.50 | E5: 28.2 | F5: 84 | G5: 50.4 | H5: 78.6
A6: 4 | B6: 20161030324 | C6: 温芳芳 | D6: 70.00 | E6: 28 | F6: 83.2 | G6: 49.92 | H6: 77.92
A7: 5 | B7: 20161030320 | C7: 周志霞 | D7: 70.50 | E7: 28.2 | F7: 79.6 | G7: 47.76 | H7: 75.96
A8: 6 | B8: 20161030313 | C8: 王向峰 | D8: 70.50 | E8: 28.2 | F8: 77.8 | G8: 46.68 | H8: 74.88
A9: 7 | B9: 20161030310 | C9: 师冬雪 | D9: 70.00 | E9: 28 | F9: 77.2 | G9: 46.32 | H9: 74.32
A10: 8 | B10: 20161030327 | C10: 喻春红 | D10: 69.50 | E10: 27.8 | F10: 77.2 | G10: 46.32 | H10: 74.12
A11: 9 | B11: 20161030319 | C11: 魏子娟 | D11: 74.00 | E11: 29.6 | F11: 缺考

Sheet 高中政治
A1: 高 中 政 治 总 成 绩
A2: 名次 | B2: 准考证号 | C2: 姓名 | D2: 笔试成绩 | E2: 笔试折合成绩 | F2: 教学技能测试原始成绩 | G2: 教学技能测试折合成绩 | H2: 总成绩
A3: 1 | B3: 20161060502 | C3: 吴晓林 | D3: 79.00 | E3: =D3*0.4 -> 31.6 | F3: 86.6 | G3: =F3*0.6 -> 51.96 | H3: =E3+G3 -> 83.56
A4: 2 | B4: 20161060515 | C4: 李明珠 | D4: 77.00 | E4: =D4*0.4 -> 30.8 | F4: 84.8 | G4: =F4*0.6 -> 50.88 | H4: =E4+G4 -> 81.68
A5: 3 | B5: 20161060501 | C5: 袁丹萍 | D5: 79.00 | E5: =D5*0.4 -> 31.6 | F5: 缺考

Sheet 高中数学
A1: 高 中 数 学总 成 绩
A2: 名次 | B2: 准考证号 | C2: 姓名 | D2: 笔试成绩 | E2: 笔试折合成绩 | F2: 教学技能测试原始成绩 | G2: 教学技能测试折合成绩 | H2: 总成绩
A3: 1 | B3: 20161020219 | C3: 张晓静 | D3: 74.00 | E3: =D3*0.4 -> 29.6 | F3: 87 | G3: =F3*0.6 -> 52.2 | H3: =E3+G3 -> 81.8
A4: 2 | B4: 20161020222 | C4: 侯培红 | D4: 65.50 | E4: =D4*0.4 -> 26.2 | F4: 86 | G4: =F4*0.6 -> 51.6 | H4: =E4+G4 -> 77.8
A5: 3 | B5: 20161020223 | C5: 王琦琦 | D5: 65.50 | E5: 26.2 | F5: 85.6 | G5: 51.36 | H5: 77.56
A6: 4 | B6: 20161020227 | C6: 梁艳鸽 | D6: 60.50 | E6: 24.2 | F6: 87.8 | G6: 52.68 | H6: 76.88
A7: 5 | B7: 20161020220 | C7: 张绍渊 | D7: 61.00 | E7: 24.4 | F7: 86.6 | G7: 51.96 | H7: 76.36
A8: 6 | B8: 20161020228 | C8: 邢丽爽 | D8: 60.50 | E8: 24.2 | F8: 83.8 | G8: 50.28 | H8: 74.48
A9: 7 | B9: 20161020221 | C9: 王小丽 | D9: 62.50 | E9: 25 | F9: 82.2 | G9: 49.32 | H9: 74.32
A10: 8 | B10: 20161020225 | C10: 刘晓雷 | D10: 53.00 | E10: 21.2 | F10: 84.2 | G10: 50.52 | H10: 71.72
A11: 9 | B11: 20161020224 | C11: 李盼宁 | D11: 64.00 | E11: 25.6 | F11: 缺考

Sheet 高中物理
A1: 高 中 物 理 总 成 绩
A2: 名次 | B2: 准考证号 | C2: 姓名 | D2: 笔试成绩 | E2: 笔试折合成绩 | F2: 教学技能测试原始成绩 | G2: 教学技能测试折合成绩 | H2: 总成绩
A3: 1 | B3: 20161040329 | C3: 贺宇哲 | D3: 74.50 | E3: =D3*0.4 -> 29.8 | F3: 80.2 | G3: =F3*0.6 -> 48.12 | H3: =E3+G3 -> 77.92
A4: 2 | B4: 20161040402 | C4: 李梦娜 | D4: 65.00 | E4: 26 | F4: 81.4 | G4: 48.84 | H4: 74.84
A5: 3 | B5: 20161040401 | C5: 宋雅婷 | D5: 58.50 | E5: 23.4 | F5: 81.4 | G5: 48.84 | H5: 72.24
A6: 4 | B6: 20161040404 | C6: 凌营南 | D6: 47.00 | E6: 18.8 | F6: 85.2 | G6: 51.12 | H6: 69.92
A7: 5 | B7: 20161040330 | C7: 郭浩楠 | D7: 49.00 | E7: 19.6 | F7: 82.4 | G7: 49.44 | H7: 69.04
A8: 6 | B8: 20161040328 | C8: 王建博 | D8: 51.50 | E8: 20.6 | F8: 80.4 | G8: 48.24 | H8: 68.84

Sheet 高中生物
A1: 高 中 生 物 总 成 绩
A2: 名次 | B2: 准考证号 | C2: 姓名 | D2: 笔试成绩 | E2: 笔试折合成绩 | F2: 教学技能测试原始成绩 | G2: 教学技能测试折合成绩 | H2: 总成绩
A3: 1 | B3: 20161050416 | C3: 陈艳玲 | D3: 71.00 | E3: =D3*0.4 -> 28.4 | F3: 86.4 | G3: =F3*0.6 -> 51.84 | H3: =E3+G3 -> 80.24
A4: 2 | B4: 20161050408 | C4: 马秀园 | D4: 70.50 | E4: 28.2 | F4: 86.2 | G4: 51.72 | H4: 79.92
A5: 3 | B5: 20161050409 | C5: 王盼婷 | D5: 66.50 | E5: 26.6 | F5: 87.6 | G5: 52.56 | H5: 79.16
A6: 4 | B6: 20161050405 | C6: 毕少锋 | D6: 74.50 | E6: 29.8 | F6: 81.2 | G6: 48.72 | H6: 78.52
A7: 5 | B7: 20161050414 | C7: 张巧丽 | D7: 71.00 | E7: 28.4 | F7: 82.4 | G7: 49.44 | H7: 77.84
A8: 6 | B8: 20161050412 | C8: 杨阳 | D8: 73.00 | E8: 29.2 | F8: 74.4 | G8: 44.64 | H8: 73.84

Sheet 中小学语文
A1: 中 小 学 语 文 总 成 绩
A2: 名次 | B2: 准考证号 | C2: 姓名 | D2: 笔试成绩 | E2: 笔试折合成绩 | F2: 教学技能测试成绩 | G2: 加权系数 | H2: 教学技能测试加权成绩 | I2: 教学技能测试加权折合成绩 | J2: 总成绩
A3: 1 | B3: 20161072030 | C3: 王宁晓 | D3: 82.50 | E3: =D3*0.4 -> 33 | F3: 88.2 | G3: 1.002920647 | H3: =F3*G3 -> 88.4576 | I3: =H3*0.6 -> 53.0746 | J3: =E3+I3 -> 86.0746
A4: 2 | B4: 20161072201 | C4: 耿世琦 | D4: 80.00 | E4: 32.00 | F4: 82.80 | G4: 1.034859193 | H4: 85.6863 | I4: 51.4118 | J4: 83.4118
A5: 3 | B5: 20161071910 | C5: 杨琳琳 | D5: 75.00 | E5: 30 | F5: 87.6 | G5: 1.002920647 | H5: 87.8558 | I5: 52.7135 | J5: 82.7135
A6: 4 | B6: 20161071621 | C6: 刘瑞淼 | D6: 82.00 | E6: 32.8 | F6: 84.6 | G6: 0.980941829 | H6: 82.9877 | I6: 49.7926 | J6: 82.5926
A7: 5 | B7: 20161072506 | C7: 李丹 | D7: 79.50 | E7: 31.8 | F7: 85.2 | G7: 0.990240679 | H7: 84.3685 | I7: 50.6211 | J7: 82.4211
A8: 6 | B8: 20161071015 | C8: 朱光辉 | D8: 76.50 | E8: 30.60 | F8: 83.00 | G8: 1.034859193 | H8: 85.8933 | I8: 51.5360 | J8: 82.1360
A9: 7 | B9: 20161071101 | C9: 张娜娜 | D9: 74.50 | E9: 29.8 | F9: 87.8 | G9: 0.990240679 | H9: 86.9431 | I9: 52.1659 | J9: 81.9659
A10: 8 | B10: 20161072309 | C10: 吉倩倩 | D10: 78.50 | E10: 31.4 | F10: 84 | G10: 1.002920647 | H10: 84.2453 | I10: 50.5472 | J10: 81.9472
A11: 9 | B11: 20161072107 | C11: 程瑞利 | D11: 78.00 | E11: 31.2 | F11: 85.6 | G11: 0.980941829 | H11: 83.9686 | I11: 50.3812 | J11: 81.5812
A12: 10 | B12: 20161070807 | C12: 李云鹤 | D12: 78.00 | E12: 31.2 | F12: 84.2 | G12: 0.990240679 | H12: 83.3783 | I12: 50.0270 | J12: 81.2270
A13: 11 | B13: 20161071617 | C13: 李静华 | D13: 77.50 | E13: 31 | F13: 84.2 | G13: 0.992739936 | H13: 83.5887 | I13: 50.1532 | J13: 81.1532
A14: 12 | B14: 20161072001 | C14: 田亚丽 | D14: 75.00 | E14: 30 | F14: 86.8 | G14: 0.980941829 | H14: 85.1458 | I14: 51.0875 | J14: 81.0875
A15: 13 | B15: 20161071826 | C15: 禹超英 | D15: 74.50 | E15: 29.8 | F15: 85.2 | G15: 1.002920647 | H15: 85.4488 | I15: 51.2693 | J15: 81.0693
A16: 14 | B16: 20161071024 | C16: 王利丹 | D16: 78.00 | E16: 31.2 | F16: 83.6 | G16: 0.992739936 | H16: 82.9931 | I16: 49.7958 | J16: 80.9958
A17: 15 | B17: 20161071129 | C17: 王佳丽 | D17: 73.50 | E17: 29.4 | F17: 85.7 | G17: 1.002920647 | H17: 85.9503 | I17: 51.5702 | J17: 80.9702
A18: 16 | B18: 20161071010 | C18: 刘文莉 | D18: 68.50 | E18: 27.40 | F18: 86.20 | G18: 1.034859193 | H18: 89.2049 | I18: 53.5229 | J18: 80.9229
A19: 17 | B19: 20161071406 | C19: 董若冰 | D19: 76.00 | E19: 30.4 | F19: 85.8 | G19: 0.980941829 | H19: 84.1648 | I19: 50.4989 | J19: 80.8989
A20: 18 | B20: 20161070527 | C20: 杨静 | D20: 74.00 | E20: 29.6 | F20: 86 | G20: 0.992739936 | H20: 85.3756 | I20: 51.2254 | J20: 80.8254
A21: 19 | B21: 20161071917 | C21: 李鹏帅 | D21: 71.00 | E21: 28.4 | F21: 88 | G21: 0.992739936 | H21: 87.3611 | I21: 52.4167 | J21: 80.8167
A22: 20 | B22: 20161071713 | C22: 赵超红 | D22: 75.00 | E22: 30 | F22: 86 | G22: 0.980941829 | H22: 84.3610 | I22: 50.6166 | J22: 80.6166
A23: 21 | B23: 20161071822 | C23: 吴启慧 | D23: 74.50 | E23: 29.8 | F23: 86.2 | G23: 0.980941829 | H23: 84.5572 | I23: 50.7343 | J23: 80.5343
A24: 22 | B24: 20161072212 | C24: 梁亭亭 | D24: 70.00 | E24: 28.00 | F24: 84.60 | G24: 1.034859193 | H24: 87.5491 | I24: 52.5295 | J24: 80.5295
A25: 23 | B25: 20161071022 | C25: 王艺冉 | D25: 73.00 | E25: 29.2 | F25: 86 | G25: 0.992739936 | H25: 85.3756 | I25: 51.2254 | J25: 80.4254
A26: 24 | B26: 20161071205 | C26: 王佳路 | D26: 75.50 | E26: 30.2 | F26: 84.2 | G26: 0.990240679 | H26: 83.3783 | I26: 50.0270 | J26: 80.2270
A27: 25 | B27: 20161071405 | C27: 刘晓娟 | D27: 70.50 | E27: 28.2 | F27: 88.2 | G27: 0.980941829 | H27: 86.5191 | I27: 51.9114 | J27: 80.1114
A28: 26 | B28: 20161072029 | C28: 刘凯苏 | D28: 76.00 | E28: 30.4 | F28: 84.4 | G28: 0.980941829 | H28: 82.7915 | I28: 49.6749 | J28: 80.0749
A29: 27 | B29: 20161070914 | C29: 胡少娟 | D29: 74.50 | E29: 29.8 | F29: 83.5 | G29: 1.002920647 | H29: 83.7439 | I29: 50.2463 | J29: 80.0463
A30: 28 | B30: 20161072123 | C30: 李珂 | D30: 72.00 | E30: 28.8 | F30: 86 | G30: 0.992739936 | H30: 85.3756 | I30: 51.2254 | J30: 80.0254
A31: 29 | B31: 20161071122 | C31: 闫媛媛 | D31: 70.50 | E31: 28.2 | F31: 86.1 | G31: 1.002920647 | H31: 86.3515 | I31: 51.8109 | J31: 80.0109
A32: 30 | B32: 20161071328 | C32: 高丽丽 | D32: 69.00 | E32: 27.6 | F32: 88.2 | G32: 0.990240679 | H32: 87.3392 | I32: 52.4035 | J32: 80.0035
A33: 31 | B33: 20161072804 | C33: 陈蒙蒙 | D33: 71.50 | E33: 28.6 | F33: 85.2 | G33: 1.002920647 | H33: 85.4488 | I33: 51.2693 | J33: 79.8693
A34: 32 | B34: 20161072617 | C34: 韩亚会 | D34: 74.50 | E34: 29.8 | F34: 84.2 | G34: 0.990240679 | H34: 83.3783 | I34: 50.0270 | J34: 79.8270
A35: 33 | B35: 20161070610 | C35: 赵一琳 | D35: 67.50 | E35: 27.00 | F35: 85.00 | G35: 1.034859193 | H35: 87.9630 | I35: 52.7778 | J35: 79.7778
A36: 34 | B36: 20161072504 | C36: 王振南 | D36: 70.50 | E36: 28.2 | F36: 87.6 | G36: 0.980941829 | H36: 85.9305 | I36: 51.5583 | J36: 79.7583
A37: 35 | B37: 20161072527 | C37: 刘路路 | D37: 75.00 | E37: 30 | F37: 83.4 | G37: 0.990240679 | H37: 82.5861 | I37: 49.5516 | J37: 79.5516
A38: 36 | B38: 20161072502 | C38: 李玲歌 | D38: 74.00 | E38: 29.6 | F38: 83 | G38: 1.002920647 | H38: 83.2424 | I38: 49.9454 | J38: 79.5454
A39: 37 | B39: 20161072423 | C39: 赵亚会 | D39: 70.50 | E39: 28.2 | F39: 86.4 | G39: 0.990240679 | H39: 85.5568 | I39: 51.3341 | J39: 79.5341
A40: 38 | B40: 20161072328 | C40: 牛乔磊 | D40: 75.50 | E40: 30.2 | F40: 83.8 | G40: 0.980941829 | H40: 82.2029 | I40: 49.3218 | J40: 79.5218
A41: 39 | B41: 20161071207 | C41: 屈婷婷 | D41: 74.00 | E41: 29.60 | F41: 80.40 | G41: 1.034859193 | H41: 83.2027 | I41: 49.9216 | J41: 79.5216
A42: 40 | B42: 20161071814 | C42: 郜航 | D42: 69.50 | E42: 27.80 | F42: 83.20 | G42: 1.034859193 | H42: 86.1003 | I42: 51.6602 | J42: 79.4602
A43: 41 | B43: 20161071420 | C43: 王晓洁 | D43: 77.00 | E43: 30.8 | F43: 81.6 | G43: 0.992739936 | H43: 81.0076 | I43: 48.6045 | J43: 79.4045
A44: 42 | B44: 20161072213 | C44: 崔盈 | D44: 75.50 | E44: 30.2 | F44: 82.8 | G44: 0.990240679 | H44: 81.9919 | I44: 49.1952 | J44: 79.3952
A45: 43 | B45: 20161071315 | C45: 孟小燕 | D45: 71.50 | E45: 28.60 | F45: 81.80 | G45: 1.034859193 | H45: 84.6515 | I45: 50.7909 | J45: 79.3909
A46: 44 | B46: 20161070913 | C46: 吕亚利 | D46: 71.00 | E46: 28.4 | F46: 85.6 | G46: 0.992739936 | H46: 84.9785 | I46: 50.9871 | J46: 79.3871
A47: 45 | B47: 20161071825 | C47: 高丽媛 | D47: 72.50 | E47: 29 | F47: 84.8 | G47: 0.990240679 | H47: 83.9724 | I47: 50.3834 | J47: 79.3834
A48: 46 | B48: 20161072303 | C48: 崔晓佳 | D48: 69.00 | E48: 27.6 | F48: 86 | G48: 1.002920647 | H48: 86.2512 | I48: 51.7507 | J48: 79.3507
A49: 47 | B49: 20161071720 | C49: 孙冬祎 | D49: 71.50 | E49: 28.6 | F49: 85.4 | G49: 0.990240679 | H49: 84.5666 | I49: 50.7399 | J49: 79.3399
A50: 48 | B50: 20161070609 | C50: 赵杰 | D50: 74.00 | E50: 29.6 | F50: 83.2 | G50: 0.992739936 | H50: 82.5960 | I50: 49.5576 | J50: 79.1576
A51: 49 | B51: 20161071630 | C51: 苏佳鹏 | D51: 72.50 | E51: 29 | F51: 83.3 | G51: 1.002920647 | H51: 83.5433 | I51: 50.1260 | J51: 79.1260
A52: 50 | B52: 20161070618 | C52: 郑玉婷 | D52: 79.00 | E52: 31.60 | F52: 76.20 | G52: 1.034859193 | H52: 78.8563 | I52: 47.3138 | J52: 78.9138
A53: 51 | B53: 20161072217 | C53: 李静 | D53: 72.00 | E53: 28.80 | F53: 80.60 | G53: 1.034859193 | H53: 83.4097 | I53: 50.0458 | J53: 78.8458
A54: 52 | B54: 20161071204 | C54: 张艳 | D54: 68.00 | E54: 27.2 | F54: 85.8 | G54: 1.002920647 | H54: 86.0506 | I54: 51.6304 | J54: 78.8304
A55: 53 | B55: 20161070919 | C55: 王艳茹 | D55: 72.00 | E55: 28.8 | F55: 84.8 | G55: 0.980941829 | H55: 83.1839 | I55: 49.9103 | J55: 78.7103
A56: 54 | B56: 20161072613 | C56: 侯亚培 | D56: 72.00 | E56: 28.8 | F56: 83.6 | G56: 0.992739936 | H56: 82.9931 | I56: 49.7958 | J56: 78.5958
A57: 55 | B57: 20161071513 | C57: 屈盼盼 | D57: 69.50 | E57: 27.8 | F57: 86.2 | G57: 0.980941829 | H57: 84.5572 | I57: 50.7343 | J57: 78.5343
A58: 56 | B58: 20161070706 | C58: 周孟源 | D58: 69.50 | E58: 27.8 | F58: 84.3 | G58: 1.002920647 | H58: 84.5462 | I58: 50.7277 | J58: 78.5277
A59: 57 | B59: 20161072222 | C59: 梁晓静 | D59: 74.00 | E59: 29.6 | F59: 81.2 | G59: 1.002920647 | H59: 81.4372 | I59: 48.8623 | J59: 78.4623
A60: 58 | B60: 20161071422 | C60: 王敏 | D60: 72.50 | E60: 29 | F60: 84 | G60: 0.980941829 | H60: 82.3991 | I60: 49.4395 | J60: 78.4395
A61: 59 | B61: 20161071320 | C61: 申佳佳 | D61: 71.50 | E61: 28.60 | F61: 80.20 | G61: 1.034859193 | H61: 82.9957 | I61: 49.7974 | J61: 78.3974
A62: 60 | B62: 20161072017 | C62: 张亚莉 | D62: 68.50 | E62: 27.4 | F62: 85.8 | G62: 0.990240679 | H62: 84.9627 | I62: 50.9776 | J62: 78.3776
A63: 61 | B63: 20161071018 | C63: 王丹丹 | D63: 73.00 | E63: 29.20 | F63: 79.20 | G63: 1.034859193 | H63: 81.9608 | I63: 49.1765 | J63: 78.3765
A64: 62 | B64: 20161071217 | C64: 卢姣 | D64: 71.00 | E64: 28.4 | F64: 83.8 | G64: 0.992739936 | H64: 83.1916 | I64: 49.9150 | J64: 78.3150
A65: 63 | B65: 20161071505 | C65: 郑帅博 | D65: 66.50 | E65: 26.6 | F65: 87 | G65: 0.990240679 | H65: 86.1509 | I65: 51.6906 | J65: 78.2906
A66: 64 | B66: 20161071622 | C66: 景龙培 | D66: 70.00 | E66: 28 | F66: 85.2 | G66: 0.980941829 | H66: 83.5762 | I66: 50.1457 | J66: 78.1457
A67: 65 | B67: 20161070725 | C67: 郝魁娇 | D67: 68.50 | E67: =D67*0.4 -> 27.4 | F67: 84.2 | G67: 1.002920647 | H67: =F67*G67 -> 84.4459 | I67: =H67*0.6 -> 50.6676 | J67: =E67+I67 -> 78.0676
A68: 66 | B68: 20161070901 | C68: 冯晓静 | D68: 69.50 | E68: 27.8 | F68: 84.6 | G68: 0.990240679 | H68: 83.7744 | I68: 50.2646 | J68: 78.0646
A69: 67 | B69: 20161071521 | C69: 胡杰敏 | D69: 66.50 | E69: 26.60 | F69: 82.80 | G69: 1.034859193 | H69: 85.6863 | I69: 51.4118 | J69: 78.0118
A70: 68 | B70: 20161071515 | C70: 苏佳博 | D70: 70.50 | E70: 28.2 | F70: 83.8 | G70: 0.990240679 | H70: 82.9822 | I70: 49.7893 | J70: 77.9893
A71: 69 | B71: 20161072304 | C71: 朱春肖 | D71: 72.50 | E71: 29 | F71: 82.2 | G71: 0.992739936 | H71: 81.6032 | I71: 48.9619 | J71: 77.9619
A72: 70 | B72: 20161071628 | C72: 岳瑞娜 | D72: 71.00 | E72: 28.4 | F72: 83.2 | G72: 0.992739936 | H72: 82.5960 | I72: 49.5576 | J72: 77.9576
A73: 71 | B73: 20161071404 | C73: 屈瑶函 | D73: 69.50 | E73: 27.8 | F73: 84.4 | G73: 0.990240679 | H73: 83.5763 | I73: 50.1458 | J73: 77.9458
A74: 72 | B74: 20161072219 | C74: 杨雅婷 | D74: 70.50 | E74: 28.20 | F74: 80.00 | G74: 1.034859193 | H74: 82.7887 | I74: 49.6732 | J74: 77.8732
A75: 73 | B75: 20161072113 | C75: 刘洋 | D75: 70.00 | E75: 28 | F75: 84.6 | G75: 0.980941829 | H75: 82.9877 | I75: 49.7926 | J75: 77.7926
A76: 74 | B76: 20161071804 | C76: 张亚苹 | D76: 70.50 | E76: 28.2 | F76: 84.2 | G76: 0.980941829 | H76: 82.5953 | I76: 49.5572 | J76: 77.7572
A77: 75 | B77: 20161072807 | C77: 史亚芬 | D77: 68.00 | E77: 27.20 | F77: 81.40 | G77: 1.034859193 | H77: 84.2375 | I77: 50.5425 | J77: 77.7425
A78: 76 | B78: 20161072329 | C78: 白娜娜 | D78: 75.00 | E78: 30 | F78: 79.3 | G78: 1.002920647 | H78: 79.5316 | I78: 47.7190 | J78: 77.7190
A79: 77 | B79: 20161072027 | C79: 李德智 | D79: 69.00 | E79: 27.6 | F79: 84 | G79: 0.992739936 | H79: 83.3902 | I79: 50.0341 | J79: 77.6341
A80: 78 | B80: 20161072311 | C80: 王秋燕 | D80: 75.00 | E80: 30 | F80: 79.8 | G80: 0.992739936 | H80: 79.2206 | I80: 47.5324 | J80: 77.5324
A81: 79 | B81: 20161071318 | C81: 高雅鸽 | D81: 68.50 | E81: 27.4 | F81: 84 | G81: 0.992739936 | H81: 83.3902 | I81: 50.0341 | J81: 77.4341
A82: 80 | B82: 20161072522 | C82: 吉欢欢 | D82: 78.00 | E82: 31.2 | F82: 77.6 | G82: 0.992739936 | H82: 77.0366 | I82: 46.2220 | J82: 77.4220
A83: 81 | B83: 20161072008 | C83: 王志平 | D83: 70.50 | E83: 28.2 | F83: 82.6 | G83: 0.990240679 | H83: 81.7939 | I83: 49.0763 | J83: 77.2763
A84: 82 | B84: 20161071816 | C84: 赵利霞 | D84: 69.00 | E84: 27.60 | F84: 80.00 | G84: 1.034859193 | H84: 82.7887 | I84: 49.6732 | J84: 77.2732
A85: 83 | B85: 20161072718 | C85: 张丽丽 | D85: 68.50 | E85: 27.4 | F85: 84.6 | G85: 0.980941829 | H85: 82.9877 | I85: 49.7926 | J85: 77.1926
A86: 84 | B86: 20161071602 | C86: 张佳楠 | D86: 67.00 | E86: 26.8 | F86: 84.8 | G86: 0.990240679 | H86: 83.9724 | I86: 50.3834 | J86: 77.1834
A87: 85 | B87: 20161071428 | C87: 李晓丹 | D87: 73.50 | E87: 29.4 | F87: 80.4 | G87: 0.990240679 | H87: 79.6154 | I87: 47.7692 | J87: 77.1692
A88: 86 | B88: 20161072409 | C88: 陈玉婷 | D88: 67.00 | E88: 26.8 | F88: 84.4 | G88: 0.992739936 | H88: 83.7873 | I88: 50.2724 | J88: 77.0724
A89: 87 | B89: 20161071128 | C89: 侯丽 | D89: 69.00 | E89: 27.6 | F89: 81.9 | G89: 1.002920647 | H89: 82.1392 | I89: 49.2835 | J89: 76.8835
A90: 88 | B90: 20161070714 | C90: 景晓南 | D90: 73.00 | E90: 29.2 | F90: 79.2 | G90: 1.002920647 | H90: 79.4313 | I90: 47.6588 | J90: 76.8588
A91: 89 | B91: 20161070719 | C91: 刘晓 | D91: 66.50 | E91: 26.6 | F91: 83.2 | G91: 1.002920647 | H91: 83.4430 | I91: 50.0658 | J91: 76.6658
A92: 90 | B92: 20161071813 | C92: 张晓耿 | D92: 69.00 | E92: 27.60 | F92: 79.00 | G92: 1.034859193 | H92: 81.7539 | I92: 49.0523 | J92: 76.6523
A93: 91 | B93: 20161070927 | C93: 翟丽君 | D93: 67.00 | E93: 26.8 | F93: 83.6 | G93: 0.992739936 | H93: 82.9931 | I93: 49.7958 | J93: 76.5958
A94: 92 | B94: 20161071726 | C94: 梁源远 | D94: 70.50 | E94: 28.2 | F94: 81.4 | G94: 0.990240679 | H94: 80.6056 | I94: 48.3634 | J94: 76.5634
A95: 93 | B95: 20161072223 | C95: 陈文娜 | D95: 68.00 | E95: 27.2 | F95: 82.8 | G95: 0.992739936 | H95: 82.1989 | I95: 49.3193 | J95: 76.5193
A96: 94 | B96: 20161072007 | C96: 黄腾蛟 | D96: 66.50 | E96: 26.6 | F96: 84.8 | G96: 0.980941829 | H96: 83.1839 | I96: 49.9103 | J96: 76.5103
A97: 95 | B97: 20161070806 | C97: 王晓玲 | D97: 66.50 | E97: 26.60 | F97: 80.20 | G97: 1.034859193 | H97: 82.9957 | I97: 49.7974 | J97: 76.3974
A98: 96 | B98: 20161070813 | C98: 董梦伟 | D98: 71.50 | E98: 28.6 | F98: 79.4 | G98: 1.002920647 | H98: 79.6319 | I98: 47.7791 | J98: 76.3791
A99: 97 | B99: 20161071528 | C99: 张利珍 | D99: 71.50 | E99: 28.6 | F99: 80.4 | G99: 0.990240679 | H99: 79.6154 | I99: 47.7692 | J99: 76.3692
A100: 98 | B100: 20161071109 | C100: 朱佳佳 | D100: 68.00 | E100: 27.2 | F100: 83.4 | G100: 0.980941829 | H100: 81.8105 | I100: 49.0863 | J100: 76.2863
A101: 99 | B101: 20161071828 | C101: 赵静静 | D101: 68.00 | E101: 27.2 | F101: 82.6 | G101: 0.990240679 | H101: 81.7939 | I101: 49.0763 | J101: 76.2763
A102: 100 | B102: 20161071728 | C102: 魏家阁 | D102: 70.00 | E102: 28 | F102: 82 | G102: 0.980941829 | H102: 80.4372 | I102: 48.2623 | J102: 76.2623
A103: 101 | B103: 20161071114 | C103: 白静 | D103: 67.00 | E103: 26.8 | F103: 82.8 | G103: 0.992739936 | H103: 82.1989 | I103: 49.3193 | J103: 76.1193
A104: 102 | B104: 20161070702 | C104: 朱怡璇 | D104: 66.50 | E104: 26.6 | F104: 83 | G104: 0.992739936 | H104: 82.3974 | I104: 49.4384 | J104: 76.0384
A105: 103 | B105: 20161072202 | C105: 王欢欢 | D105: 69.50 | E105: 27.80 | F105: 77.20 | G105: 1.034859193 | H105: 79.8911 | I105: 47.9347 | J105: 75.7347
A106: 104 | B106: 20161070530 | C106: 苏晓璐 | D106: 67.00 | E106: 26.8 | F106: 81.3 | G106: 1.002920647 | H106: 81.5374 | I106: 48.9225 | J106: 75.7225
A107: 105 | B107: 20161072225 | C107: 徐玉梅 | D107: 69.00 | E107: 27.60 | F107: 77.40 | G107: 1.034859193 | H107: 80.0981 | I107: 48.0589 | J107: 75.6589
A108: 106 | B108: 20161072028 | C108: 毛凌云 | D108: 67.50 | E108: 27 | F108: 80.8 | G108: 1.002920647 | H108: 81.0360 | I108: 48.6216 | J108: 75.6216
A109: 107 | B109: 20161072224 | C109: 张晓娟 | D109: 70.00 | E109: 28.00 | F109: 76.60 | G109: 1.034859193 | H109: 79.2702 | I109: 47.5621 | J109: 75.5621
A110: 108 | B110: 20161072111 | C110: 赵露 | D110: 68.50 | E110: 27.40 | F110: 77.20 | G110: 1.034859193 | H110: 79.8911 | I110: 47.9347 | J110: 75.3347
A111: 109 | B111: 20161070812 | C111: 董颖 | D111: 69.50 | E111: 27.8 | F111: 79.8 | G111: 0.992739936 | H111: 79.2206 | I111: 47.5324 | J111: 75.3324
A112: 110 | B112: 20161072715 | C112: 黄少瑞 | D112: 67.50 | E112: 27 | F112: 82 | G112: 0.980941829 | H112: 80.4372 | I112: 48.2623 | J112: 75.2623
A113: 111 | B113: 20161070707 | C113: 王佩瑶 | D113: 67.50 | E113: 27 | F113: 81.6 | G113: 0.980941829 | H113: 80.0449 | I113: 48.0269 | J113: 75.0269
A114: 112 | B114: 20161071316 | C114: 梁瑾 | D114: 68.50 | E114: 27.40 | F114: 76.40 | G114: 1.034859193 | H114: 79.0632 | I114: 47.4379 | J114: 74.8379
A115: 113 | B115: 20161070928 | C115: 侯翠翠 | D115: 67.50 | E115: 27 | F115: 79.2 | G115: 1.002920647 | H115: 79.4313 | I115: 47.6588 | J115: 74.6588
A116: 114 | B116: 20161072026 | C116: 付丽娜 | D116: 67.00 | E116: 26.8 | F116: 79.5 | G116: 1.002920647 | H116: 79.7322 | I116: 47.8393 | J116: 74.6393
A117: 115 | B117: 20161072312 | C117: 邓玉格 | D117: 66.50 | E117: 26.6 | F117: 80.6 | G117: 0.992739936 | H117: 80.0148 | I117: 48.0089 | J117: 74.6089
A118: 116 | B118: 20161071706 | C118: 李金金 | D118: 68.00 | E118: 27.2 | F118: 80.4 | G118: 0.980941829 | H118: 78.8677 | I118: 47.3206 | J118: 74.5206
A119: 117 | B119: 20161071619 | C119: 李少婷 | D119: 66.50 | E119: 26.6 | F119: 80.6 | G119: 0.990240679 | H119: 79.8134 | I119: 47.8880 | J119: 74.4880
A120: 118 | B120: 20161072322 | C120: 张凤英 | D120: 66.50 | E120: 26.6 | F120: 79.3 | G120: 1.002920647 | H120: 79.5316 | I120: 47.7190 | J120: 74.3190
A121: 119 | B121: 20161071610 | C121: 张慧芳 | D121: 74.00 | E121: 29.60 | F121: 72.00 | G121: 1.034859193 | H121: 74.5099 | I121: 44.7059 | J121: 74.3059
A122: 120 | B122: 20161072615 | C122: 王亚娟 | D122: 67.00 | E122: 26.8 | F122: 80.4 | G122: 0.980941829 | H122: 78.8677 | I122: 47.3206 | J122: 74.1206
A123: 121 | B123: 20161072717 | C123: 田文利 | D123: 68.00 | E123: 27.2 | F123: 78.8 | G123: 0.990240679 | H123: 78.0310 | I123: 46.8186 | J123: 74.0186
A124: 122 | B124: 20161071520 | C124: 周春晓 | D124: 66.50 | E124: 26.6 | F124: 79.2 | G124: 0.992739936 | H124: 78.6250 | I124: 47.1750 | J124: 73.7750
A125: 123 | B125: 20161072516 | C125: 郭媛媛 | D125: 71.50 | E125: 28.6 | F125: 76 | G125: 0.990240679 | H125: 75.2583 | I125: 45.1550 | J125: 73.7550
A126: 124 | B126: 20161072022 | C126: 孙丹丹 | D126: 68.50 | E126: 27.4 | F126: 77.4 | G126: 0.990240679 | H126: 76.6446 | I126: 45.9868 | J126: 73.3868
A127: 125 | B127: 20161070726 | C127: 景晓丽 | D127: 66.50 | E127: 26.6 | F127: 77.2 | G127: 1.002920647 | H127: 77.4255 | I127: 46.4553 | J127: 73.0553
A128: 126 | B128: 20161071222 | C128: 唐俊俊 | D128: 68.50 | E128: 27.4 | F128: 75.8 | G128: 1.002920647 | H128: 76.0214 | I128: 45.6128 | J128: 73.0128
A129: 127 | B129: 20161072720 | C129: 李宁 | D129: 70.00 | E129: 28 | F129: 76.4 | G129: 0.980941829 | H129: 74.9440 | I129: 44.9664 | J129: 72.9664
A130: 128 | B130: 20161072101 | C130: 宋弯弯 | D130: 69.50 | E130: 27.8 | F130: 75 | G130: 1.002920647 | H130: 75.2190 | I130: 45.1314 | J130: 72.9314
A131: 129 | B131: 20161070920 | C131: 吴陆玲 | D131: 68.50 | E131: =D131*0.4 -> 27.40 | F131: 70.60 | G131: 1.034859193 | H131: =F131*G131 -> 73.0611 | I131: =H131*0.6 -> 43.8366 | J131: =E131+I131 -> 71.2366
A132: 130 | B132: 20161072006 | C132: 雷玉慧 | D132: 77.50 | E132: 31.00 | F132: 缺考
A133: 131 | B133: 20161072627 | C133: 李良玉 | D133: 69.5 | E133: 27.80 | F133: 缺考
A134: 132 | B134: 20161072721 | C134: 郭红丽 | D134: 69.00 | E134: 27.60 | F134: 缺考
A135: 133 | B135: 20161072301 | C135: 秦美玲 | D135: 69.00 | E135: 27.60 | F135: 缺考
A136: 134 | B136: 20161071418 | C136: 杨慧 | D136: 69.00 | E136: 27.60 | F136: 缺考
A137: 135 | B137: 20161072011 | C137: 李莹 | D137: 68.50 | E137: 27.40 | F137: 缺考
A138: 136 | B138: 20161070803 | C138: 任树清 | D138: 68.50 | E138: 27.40 | F138: 缺考
A139: 137 | B139: 20161072628 | C139: 翟志娟 | D139: 68 | E139: 27.20 | F139: 缺考
A140: 138 | B140: 20161072402 | C140: 石玉杏 | D140: 67.50 | E140: 27.00 | F140: 缺考
A141: 139 | B141: 20161071830 | C141: 张南 | D141: 66.50 | E141: 26.60 | F141: 缺考

Sheet 中小学数学
A1: 中 小 学 数 学 总 成 绩
A2: 名次 | B2: 准考证号 | C2: 姓名 | D2: 笔试成绩 | E2: 笔试折合成绩 | F2: 教学技能测试原始成绩 | G2: 加权系数 | H2: 教学技能测试加权成绩 | I2: 教学技能测试折合成绩 | J2: 总成绩
A3: 1 | B3: 20161083725 | C3: 张彦阁 | D3: 74.00 | E3: =D3*0.4 -> 29.60 | F3: 88.40 | G3: 1.016944828 | H3: =F3*G3 -> 89.8979 | I3: =H3*0.6 -> 53.9388 | J3: =E3+I3 -> 83.5388
A4: 2 | B4: 20161082824 | C4: 张亚苹 | D4: 79.00 | E4: 31.6 | F4: 87.9 | G4: 0.9824563452 | H4: 86.3579 | I4: 51.8147 | J4: 83.4147
A5: 3 | B5: 20161082911 | C5: 杨晓帆 | D5: 81.50 | E5: 32.60 | F5: 82.40 | G5: 1.016944828 | H5: 83.7963 | I5: 50.2778 | J5: 82.8778
A6: 4 | B6: 20161083904 | C6: 刘明娜 | D6: 80.00 | E6: 32.00 | F6: 85.00 | G6: 0.9942192979 | H6: 84.5086 | I6: 50.7052 | J6: 82.7052
A7: 5 | B7: 20161083316 | C7: 景文博 | D7: 77.00 | E7: 30.80 | F7: 87.40 | G7: 0.9888905408 | H7: 86.4290 | I7: 51.8574 | J7: 82.6574
A8: 6 | B8: 20161084012 | C8: 左雪华 | D8: 82.50 | E8: 33 | F8: 84 | G8: 0.9824563452 | H8: 82.5263 | I8: 49.5158 | J8: 82.5158
A9: 7 | B9: 20161083717 | C9: 李冬芽 | D9: 75.50 | E9: 30.20 | F9: 87.20 | G9: 0.9888905408 | H9: 86.2313 | I9: 51.7388 | J9: 81.9388
A10: 8 | B10: 20161083411 | C10: 郭昭瑞 | D10: 71.50 | E10: 28.60 | F10: 87.20 | G10: 1.016944828 | H10: 88.6776 | I10: 53.2066 | J10: 81.8066
A11: 9 | B11: 20161084220 | C11: 王永丽 | D11: 78.00 | E11: 31.20 | F11: 84.80 | G11: 0.9942192979 | H11: 84.3098 | I11: 50.5859 | J11: 81.7859
A12: 10 | B12: 20161083826 | C12: 崔依博 | D12: 76.00 | E12: 30.40 | F12: 86.60 | G12: 0.9888905408 | H12: 85.6379 | I12: 51.3828 | J12: 81.7828
A13: 11 | B13: 20161082906 | C13: 王晓飞 | D13: 80.50 | E13: 32.20 | F13: 82.80 | G13: 0.9942192979 | H13: 82.3214 | I13: 49.3928 | J13: 81.5928
A14: 12 | B14: 20161083325 | C14: 薛晶丽 | D14: 72.00 | E14: 28.80 | F14: 86.00 | G14: 1.016944828 | H14: 87.4573 | I14: 52.4744 | J14: 81.2744
A15: 13 | B15: 20161083702 | C15: 张鑫 | D15: 70.50 | E15: 28.20 | F15: 86.80 | G15: 1.018582017 | H15: 88.4129 | I15: 53.0478 | J15: 81.2478
A16: 14 | B16: 20161084113 | C16: 张飞格 | D16: 78.50 | E16: 31.40 | F16: 81.40 | G16: 1.018582017 | H16: 82.9126 | I16: 49.7475 | J16: 81.1475
A17: 15 | B17: 20161083308 | C17: 雷巧育 | D17: 76.50 | E17: 30.6 | F17: 85.6 | G17: 0.9824563452 | H17: 84.0983 | I17: 50.4590 | J17: 81.0590
A18: 16 | B18: 20161083129 | C18: 张笑育 | D18: 73.50 | E18: 29.40 | F18: 84.60 | G18: 1.016944828 | H18: 86.0335 | I18: 51.6201 | J18: 81.0201
A19: 17 | B19: 20161083101 | C19: 赵晓博 | D19: 73.50 | E19: 29.40 | F19: 86.40 | G19: 0.9942192979 | H19: 85.9005 | I19: 51.5403 | J19: 80.9403
A20: 18 | B20: 20161082823 | C20: 常婉璐 | D20: 75.50 | E20: 30.2 | F20: 86 | G20: 0.9824563452 | H20: 84.4912 | I20: 50.6947 | J20: 80.8947
A21: 19 | B21: 20161082930 | C21: 高李柯 | D21: 72.50 | E21: 29.00 | F21: 84.80 | G21: 1.018582017 | H21: 86.3758 | I21: 51.8255 | J21: 80.8255
A22: 20 | B22: 20161083119 | C22: 郭亚婷 | D22: 75.00 | E22: 30.00 | F22: 85.00 | G22: 0.9942192979 | H22: 84.5086 | I22: 50.7052 | J22: 80.7052
A23: 21 | B23: 20161083507 | C23: 李娅姗 | D23: 75.00 | E23: 30 | F23: 85.8 | G23: 0.9824563452 | H23: 84.2948 | I23: 50.5769 | J23: 80.5769
A24: 22 | B24: 20161083611 | C24: 王金垚 | D24: 76.00 | E24: 30.4 | F24: 84.9 | G24: 0.9824563452 | H24: 83.4105 | I24: 50.0463 | J24: 80.4463
A25: 23 | B25: 20161083604 | C25: 曹云燕 | D25: 70.50 | E25: 28.20 | F25: 85.20 | G25: 1.018582017 | H25: 86.7832 | I25: 52.0699 | J25: 80.2699
A26: 24 | B26: 20161083715 | C26: 李怡文 | D26: 70.50 | E26: 28.20 | F26: 85.20 | G26: 1.016944828 | H26: 86.6437 | I26: 51.9862 | J26: 80.1862
A27: 25 | B27: 20161083403 | C27: 王露露 | D27: 69.00 | E27: 27.60 | F27: 88.00 | G27: 0.9942192979 | H27: 87.4913 | I27: 52.4948 | J27: 80.0948
A28: 26 | B28: 20161083527 | C28: 李亚男 | D28: 69.50 | E28: 27.80 | F28: 87.60 | G28: 0.9942192979 | H28: 87.0936 | I28: 52.2562 | J28: 80.0562
A29: 27 | B29: 20161082915 | C29: 周亚闪 | D29: 74.50 | E29: 29.8 | F29: 85.2 | G29: 0.9824563452 | H29: 83.7053 | I29: 50.2232 | J29: 80.0232
A30: 28 | B30: 20161083526 | C30: 冯英格 | D30: 73.50 | E30: 29.40 | F30: 82.80 | G30: 1.016944828 | H30: 84.2030 | I30: 50.5218 | J30: 79.9218
A31: 29 | B31: 20161083203 | C31: 董风君 | D31: 72.00 | E31: 28.8 | F31: 86.7 | G31: 0.9824563452 | H31: 85.1790 | I31: 51.1074 | J31: 79.9074
A32: 30 | B32: 20161083630 | C32: 王欢 | D32: 76.00 | E32: 30.40 | F32: 80.80 | G32: 1.018582017 | H32: 82.3014 | I32: 49.3809 | J32: 79.7809
A33: 31 | B33: 20161083528 | C33: 谢春阳 | D33: 72.00 | E33: 28.80 | F33: 83.20 | G33: 1.016944828 | H33: 84.6098 | I33: 50.7659 | J33: 79.5659
A34: 32 | B34: 20161083416 | C34: 张瑞 | D34: 83.50 | E34: 33.4 | F34: 78.3 | G34: 0.9824563452 | H34: 76.9263 | I34: 46.1558 | J34: 79.5558
A35: 33 | B35: 20161083202 | C35: 赵方方 | D35: 68.00 | E35: 27.20 | F35: 85.80 | G35: 1.016944828 | H35: 87.2539 | I35: 52.3523 | J35: 79.5523
A36: 34 | B36: 20161083803 | C36: 王亚歌 | D36: 74.00 | E36: 29.6 | F36: 84.6 | G36: 0.9824563452 | H36: 83.1158 | I36: 49.8695 | J36: 79.4695
A37: 35 | B37: 20161083113 | C37: 李韶丹 | D37: 71.00 | E37: 28.40 | F37: 85.60 | G37: 0.9942192979 | H37: 85.1052 | I37: 51.0631 | J37: 79.4631
A38: 36 | B38: 20161083012 | C38: 张要歌 | D38: 74.00 | E38: 29.6 | F38: 84.5 | G38: 0.9824563452 | H38: 83.0176 | I38: 49.8105 | J38: 79.4105
A39: 37 | B39: 20161083002 | C39: 崔晓丽 | D39: 72.00 | E39: 28.80 | F39: 84.60 | G39: 0.9942192979 | H39: 84.1110 | I39: 50.4666 | J39: 79.2666
A40: 38 | B40: 20161083108 | C40: 焦兴兴 | D40: 74.00 | E40: 29.60 | F40: 83.60 | G40: 0.9888905408 | H40: 82.6712 | I40: 49.6027 | J40: 79.2027
A41: 39 | B41: 20161082927 | C41: 宋肖音 | D41: 70.50 | E41: 28.20 | F41: 85.86 | G41: 0.9888905408 | H41: 84.9061 | I41: 50.9437 | J41: 79.1437
A42: 40 | B42: 20161083427 | C42: 杨静 | D42: 78.50 | E42: 31.40 | F42: 80.40 | G42: 0.9888905408 | H42: 79.5068 | I42: 47.7041 | J42: 79.1041
A43: 41 | B43: 20161083201 | C43: 耿晓月 | D43: 71.00 | E43: 28.4 | F43: 86 | G43: 0.9824563452 | H43: 84.4912 | I43: 50.6947 | J43: 79.0947
A44: 42 | B44: 20161083809 | C44: 刘灵霞 | D44: 75.00 | E44: 30.00 | F44: 80.40 | G44: 1.016944828 | H44: 81.7624 | I44: 49.0574 | J44: 79.0574
A45: 43 | B45: 20161083924 | C45: 陈洒 | D45: 73.00 | E45: 29.20 | F45: 81.60 | G45: 1.016944828 | H45: 82.9827 | I45: 49.7896 | J45: 78.9896
A46: 44 | B46: 20161083512 | C46: 苏亚南 | D46: 71.50 | E46: 28.60 | F46: 84.80 | G46: 0.9888905408 | H46: 83.8579 | I46: 50.3148 | J46: 78.9148
A47: 45 | B47: 20161083104 | C47: 丁晓玲 | D47: 71.00 | E47: 28.40 | F47: 82.60 | G47: 1.018582017 | H47: 84.1349 | I47: 50.4809 | J47: 78.8809
A48: 46 | B48: 20161084112 | C48: 郭梦娜 | D48: 72.00 | E48: 28.80 | F48: 81.80 | G48: 1.018582017 | H48: 83.3200 | I48: 49.9920 | J48: 78.7920
A49: 47 | B49: 20161082904 | C49: 田宗乐 | D49: 74.50 | E49: 29.8 | F49: 83.1 | G49: 0.9824563452 | H49: 81.6421 | I49: 48.9853 | J49: 78.7853
A50: 48 | B50: 20161083718 | C50: 魏贝贝 | D50: 72.00 | E50: 28.80 | F50: 84.20 | G50: 0.9888905408 | H50: 83.2646 | I50: 49.9588 | J50: 78.7588
A51: 49 | B51: 20161084107 | C51: 李彩玲 | D51: 71.00 | E51: 28.40 | F51: 84.40 | G51: 0.9942192979 | H51: 83.9121 | I51: 50.3473 | J51: 78.7473
A52: 50 | B52: 20161083707 | C52: 陈梦亚 | D52: 69.00 | E52: 27.60 | F52: 83.60 | G52: 1.018582017 | H52: 85.1535 | I52: 51.0921 | J52: 78.6921
A53: 51 | B53: 20161083110 | C53: 余乐 | D53: 72.00 | E53: 28.80 | F53: 81.60 | G53: 1.018582017 | H53: 83.1163 | I53: 49.8698 | J53: 78.6698
A54: 52 | B54: 20161083911 | C54: 冯益蕾 | D54: 71.00 | E54: 28.40 | F54: 84.40 | G54: 0.9888905408 | H54: 83.4624 | I54: 50.0774 | J54: 78.4774
A55: 53 | B55: 20161083309 | C55: 戴文丽 | D55: 69.50 | E55: 27.80 | F55: 85.10 | G55: 0.9888905408 | H55: 84.1546 | I55: 50.4928 | J55: 78.2928
A56: 54 | B56: 20161083928 | C56: 文晓丹 | D56: 67.00 | E56: 26.80 | F56: 86.20 | G56: 0.9942192979 | H56: 85.7017 | I56: 51.4210 | J56: 78.2210
A57: 55 | B57: 20161083921 | C57: 王艳伟 | D57: 66.00 | E57: 26.40 | F57: 86.40 | G57: 0.9942192979 | H57: 85.9005 | I57: 51.5403 | J57: 77.9403
A58: 56 | B58: 20161083709 | C58: 冯意寒 | D58: 65.50 | E58: 26.20 | F58: 87.20 | G58: 0.9888905408 | H58: 86.2313 | I58: 51.7388 | J58: 77.9388
A59: 57 | B59: 20161082919 | C59: 刘铭扬 | D59: 71.50 | E59: 28.60 | F59: 80.80 | G59: 1.016944828 | H59: 82.1691 | I59: 49.3015 | J59: 77.9015
A60: 58 | B60: 20161083319 | C60: 刘悠悠 | D60: 67.50 | E60: 27.00 | F60: 83.20 | G60: 1.018582017 | H60: 84.7460 | I60: 50.8476 | J60: 77.8476
A61: 59 | B61: 20161083327 | C61: 赵玉姣 | D61: 69.50 | E61: 27.80 | F61: 82.00 | G61: 1.016944828 | H61: 83.3895 | I61: 50.0337 | J61: 77.8337
A62: 60 | B62: 20161084004 | C62: 白玉 | D62: 70.50 | E62: 28.20 | F62: 83.60 | G62: 0.9888905408 | H62: 82.6712 | I62: 49.6027 | J62: 77.8027
A63: 61 | B63: 20161082916 | C63: 耿婉婉 | D63: 74.00 | E63: 29.60 | F63: 81.20 | G63: 0.9888905408 | H63: 80.2979 | I63: 48.1787 | J63: 77.7787
A64: 62 | B64: 20161082922 | C64: 王晓华 | D64: 66.50 | E64: 26.6 | F64: 86.7 | G64: 0.9824563452 | H64: 85.1790 | I64: 51.1074 | J64: 77.7074
A65: 63 | B65: 20161083326 | C65: 董婉婉 | D65: 74.00 | E65: 29.60 | F65: 80.60 | G65: 0.9942192979 | H65: 80.1341 | I65: 48.0804 | J65: 77.6804
A66: 64 | B66: 20161083404 | C66: 吴志钺 | D66: 67.50 | E66: 27.00 | F66: 85.20 | G66: 0.9888905408 | H66: 84.2535 | I66: 50.5521 | J66: 77.5521
A67: 65 | B67: 20161083601 | C67: 毛姗姗 | D67: 67.00 | E67: =D67*0.4 -> 26.80 | F67: 83.00 | G67: 1.016944828 | H67: =F67*G67 -> 84.4064 | I67: =H67*0.6 -> 50.6439 | J67: =E67+I67 -> 77.4439
A68: 66 | B68: 20161083418 | C68: 张闪闪 | D68: 68.50 | E68: 27.40 | F68: 82.00 | G68: 1.016944828 | H68: 83.3895 | I68: 50.0337 | J68: 77.4337
A69: 67 | B69: 20161083126 | C69: 周雅倩 | D69: 71.50 | E69: 28.60 | F69: 82.20 | G69: 0.9888905408 | H69: 81.2868 | I69: 48.7721 | J69: 77.3721
A70: 68 | B70: 20161083207 | C70: 梁旭珠 | D70: 67.00 | E70: 26.8 | F70: 85.7 | G70: 0.9824563452 | H70: 84.1965 | I70: 50.5179 | J70: 77.3179
A71: 69 | B71: 20161083008 | C71: 王洋 | D71: 67.00 | E71: 26.80 | F71: 84.60 | G71: 0.9942192979 | H71: 84.1110 | I71: 50.4666 | J71: 77.2666
A72: 70 | B72: 20161084218 | C72: 潘梦瑶 | D72: 67.00 | E72: 26.8 | F72: 85.6 | G72: 0.9824563452 | H72: 84.0983 | I72: 50.4590 | J72: 77.2590
A73: 71 | B73: 20161083605 | C73: 马芳芳 | D73: 71.00 | E73: 28.40 | F73: 81.80 | G73: 0.9942192979 | H73: 81.3271 | I73: 48.7963 | J73: 77.1963
A74: 72 | B74: 20161083616 | C74: 陈志娟 | D74: 70.50 | E74: 28.2 | F74: 83.1 | G74: 0.9824563452 | H74: 81.6421 | I74: 48.9853 | J74: 77.1853
A75: 73 | B75: 20161083621 | C75: 李盼盼 | D75: 68.00 | E75: 27.2 | F75: 84.7 | G75: 0.9824563452 | H75: 83.2141 | I75: 49.9284 | J75: 77.1284
A76: 74 | B76: 20161083711 | C76: 王冬梅 | D76: 66.00 | E76: 26.40 | F76: 85.00 | G76: 0.9942192979 | H76: 84.5086 | I76: 50.7052 | J76: 77.1052
A77: 75 | B77: 20161084011 | C77: 钱丽娟 | D77: 66.00 | E77: 26.4 | F77: 86 | G77: 0.9824563452 | H77: 84.4912 | I77: 50.6947 | J77: 77.0947
A78: 76 | B78: 20161083125 | C78: 邢晓亮 | D78: 66.50 | E78: 26.60 | F78: 85.00 | G78: 0.9888905408 | H78: 84.0557 | I78: 50.4334 | J78: 77.0334
A79: 77 | B79: 20161083401 | C79: 李春艳 | D79: 69.00 | E79: 27.60 | F79: 81.00 | G79: 1.016944828 | H79: 82.3725 | I79: 49.4235 | J79: 77.0235
A80: 78 | B80: 20161084013 | C80: 冯晓娜 | D80: 71.00 | E80: 28.40 | F80: 81.80 | G80: 0.9888905408 | H80: 80.8912 | I80: 48.5347 | J80: 76.9347
A81: 79 | B81: 20161083828 | C81: 薛婷婷 | D81: 69.00 | E81: 27.60 | F81: 80.80 | G81: 1.016944828 | H81: 82.1691 | I81: 49.3015 | J81: 76.9015
A82: 80 | B82: 20161084014 | C82: 韩瑞瑞 | D82: 65.00 | E82: 26.00 | F82: 83.20 | G82: 1.018582017 | H82: 84.7460 | I82: 50.8476 | J82: 76.8476
A83: 81 | B83: 20161082914 | C83: 程金红 | D83: 69.50 | E83: 27.80 | F83: 80.20 | G83: 1.018582017 | H83: 81.6903 | I83: 49.0142 | J83: 76.8142
A84: 82 | B84: 20161082921 | C84: 宋俊轶 | D84: 70.00 | E84: 28.00 | F84: 81.80 | G84: 0.9942192979 | H84: 81.3271 | I84: 48.7963 | J84: 76.7963
A85: 83 | B85: 20161083228 | C85: 郭晓婷 | D85: 71.00 | E85: 28.4 | F85: 82.1 | G85: 0.9824563452 | H85: 80.6597 | I85: 48.3958 | J85: 76.7958
A86: 84 | B86: 20161084111 | C86: 裴亚梅 | D86: 67.50 | E86: 27.00 | F86: 81.40 | G86: 1.018582017 | H86: 82.9126 | I86: 49.7475 | J86: 76.7475
A87: 85 | B87: 20161083423 | C87: 张瑞兵 | D87: 74.00 | E87: 29.60 | F87: 79.00 | G87: 0.9942192979 | H87: 78.5433 | I87: 47.1260 | J87: 76.7260
A88: 86 | B88: 20161083019 | C88: 樊旭晶 | D88: 67.50 | E88: 27.00 | F88: 83.80 | G88: 0.9888905408 | H88: 82.8690 | I88: 49.7214 | J88: 76.7214
A89: 87 | B89: 20161083023 | C89: 王楠楠 | D89: 70.00 | E89: 28 | F89: 82.6 | G89: 0.9824563452 | H89: 81.1509 | I89: 48.6905 | J89: 76.6905
A90: 88 | B90: 20161083024 | C90: 吴慧青 | D90: 67.50 | E90: 27.00 | F90: 81.40 | G90: 1.016944828 | H90: 82.7793 | I90: 49.6676 | J90: 76.6676
A91: 89 | B91: 20161083029 | C91: 孙晓林 | D91: 70.50 | E91: 28.20 | F91: 79.40 | G91: 1.016944828 | H91: 80.7454 | I91: 48.4473 | J91: 76.6473
A92: 90 | B92: 20161084114 | C92: 郭营怡 | D92: 67.00 | E92: 26.80 | F92: 83.00 | G92: 0.9942192979 | H92: 82.5202 | I92: 49.5121 | J92: 76.3121
A93: 91 | B93: 20161084024 | C93: 董春丽 | D93: 70.50 | E93: 28.2 | F93: 81.6 | G93: 0.9824563452 | H93: 80.1684 | I93: 48.1011 | J93: 76.3011
A94: 92 | B94: 20161082817 | C94: 石丹丹 | D94: 65.50 | E94: 26.2 | F94: 84.9 | G94: 0.9824563452 | H94: 83.4105 | I94: 50.0463 | J94: 76.2463
A95: 93 | B95: 20161083424 | C95: 李新娜 | D95: 68.00 | E95: 27.20 | F95: 82.20 | G95: 0.9942192979 | H95: 81.7248 | I95: 49.0349 | J95: 76.2349
A96: 94 | B96: 20161083802 | C96: 王颖杰 | D96: 72.50 | E96: 29.00 | F96: 77.00 | G96: 1.018582017 | H96: 78.4308 | I96: 47.0585 | J96: 76.0585
A97: 95 | B97: 20161083420 | C97: 王静楠 | D97: 65.00 | E97: 26.00 | F97: 82.00 | G97: 1.016944828 | H97: 83.3895 | I97: 50.0337 | J97: 76.0337
A98: 96 | B98: 20161083919 | C98: 李晓丽 | D98: 65.00 | E98: 26.00 | F98: 81.80 | G98: 1.018582017 | H98: 83.3200 | I98: 49.9920 | J98: 75.9920
A99: 97 | B99: 20161083720 | C99: 张丹英 | D99: 73.00 | E99: 29.20 | F99: 75.80 | G99: 1.018582017 | H99: 77.2085 | I99: 46.3251 | J99: 75.5251
A100: 98 | B100: 20161083210 | C100: 龙润锋 | D100: 66.50 | E100: 26.6 | F100: 82.9 | G100: 0.9824563452 | H100: 81.4456 | I100: 48.8674 | J100: 75.4674
A101: 99 | B101: 20161083009 | C101: 任慧攀 | D101: 70.00 | E101: 28.00 | F101: 77.60 | G101: 1.018582017 | H101: 79.0420 | I101: 47.4252 | J101: 75.4252
A102: 100 | B102: 20161083503 | C102: 刘晓萍 | D102: 68.00 | E102: 27.20 | F102: 81.20 | G102: 0.9888905408 | H102: 80.2979 | I102: 48.1787 | J102: 75.3787
A103: 101 | B103: 20161083226 | C103: 王秀荣 | D103: 65.50 | E103: 26.20 | F103: 80.40 | G103: 1.018582017 | H103: 81.8940 | I103: 49.1364 | J103: 75.3364
A104: 102 | B104: 20161083712 | C104: 李喜歌 | D104: 69.50 | E104: 27.80 | F104: 77.80 | G104: 1.016944828 | H104: 79.1183 | I104: 47.4710 | J104: 75.2710
A105: 103 | B105: 20161083412 | C105: 周改丽 | D105: 66.00 | E105: 26.40 | F105: 82.20 | G105: 0.9888905408 | H105: 81.2868 | I105: 48.7721 | J105: 75.1721
A106: 104 | B106: 20161084117 | C106: 魏星星 | D106: 71.50 | E106: 28.60 | F106: 76.20 | G106: 1.016944828 | H106: 77.4912 | I106: 46.4947 | J106: 75.0947
A107: 105 | B107: 20161083603 | C107: 张跃丽 | D107: 69.50 | E107: 27.8 | F107: 80.2 | G107: 0.9824563452 | H107: 78.7930 | I107: 47.2758 | J107: 75.0758
A108: 106 | B108: 20161083425 | C108: 孙晓晗 | D108: 65.50 | E108: 26.20 | F108: 79.80 | G108: 1.018582017 | H108: 81.2828 | I108: 48.7697 | J108: 74.9697
A109: 107 | B109: 20161082826 | C109: 张净净 | D109: 65.00 | E109: 26.00 | F109: 82.40 | G109: 0.9888905408 | H109: 81.4846 | I109: 48.8907 | J109: 74.8907
A110: 108 | B110: 20161083914 | C110: 刘琳琳 | D110: 71.50 | E110: 28.60 | F110: 75.80 | G110: 1.016944828 | H110: 77.0844 | I110: 46.2507 | J110: 74.8507
A111: 109 | B111: 20161083710 | C111: 李相甫 | D111: 65.00 | E111: 26.00 | F111: 82.00 | G111: 0.9888905408 | H111: 81.0890 | I111: 48.6534 | J111: 74.6534
A112: 110 | B112: 20161083813 | C112: 张素鹏 | D112: 65.50 | E112: 26.20 | F112: 80.60 | G112: 0.9942192979 | H112: 80.1341 | I112: 48.0804 | J112: 74.2804
A113: 111 | B113: 20161083205 | C113: 雷朝会 | D113: 66.50 | E113: 26.6 | F113: 80.4 | G113: 0.9824563452 | H113: 78.9895 | I113: 47.3937 | J113: 73.9937
A114: 112 | B114: 20161083830 | C114: 辛红普 | D114: 68.00 | E114: 27.20 | F114: 76.60 | G114: 1.016944828 | H114: 77.8980 | I114: 46.7388 | J114: 73.9388
A115: 113 | B115: 20161083906 | C115: 刘晓燕 | D115: 65.00 | E115: 26.00 | F115: 80.20 | G115: 0.9888905408 | H115: 79.3090 | I115: 47.5854 | J115: 73.5854
A116: 114 | B116: 20161083320 | C116: 赵营 | D116: 66.50 | E116: 26.60 | F116: 77.00 | G116: 1.016944828 | H116: 78.3048 | I116: 46.9829 | J116: 73.5829
A117: 115 | B117: 20161083521 | C117: 马小萌 | D117: 65.00 | E117: 26.00 | F117: 80.00 | G117: 0.9888905408 | H117: 79.1112 | I117: 47.4667 | J117: 73.4667
A118: 116 | B118: 20161084029 | C118: 赵玲苓 | D118: 68.00 | E118: 27.20 | F118: 75.20 | G118: 1.018582017 | H118: 76.5974 | I118: 45.9584 | J118: 73.1584
A119: 117 | B119: 20161084201 | C119: 孙颖 | D119: 66.00 | E119: 26.40 | F119: 78.00 | G119: 0.9942192979 | H119: 77.5491 | I119: 46.5295 | J119: 72.9295
A120: 118 | B120: 20161083620 | C120: 樊卫格 | D120: 65.00 | E120: 26.00 | F120: 76.40 | G120: 1.016944828 | H120: 77.6946 | I120: 46.6168 | J120: 72.6168
A121: 119 | B121: 20161083405 | C121: 宋文慧 | D121: 65.00 | E121: 26.00 | F121: 76.40 | G121: 1.016944828 | H121: 77.6946 | I121: 46.6168 | J121: 72.6168
A122: 120 | B122: 20161083115 | C122: 刘亚娟 | D122: 65.00 | E122: 26.00 | F122: 78.00 | G122: 0.9942192979 | H122: 77.5491 | I122: 46.5295 | J122: 72.5295
A123: 121 | B123: 20161083811 | C123: 樊丹丹 | D123: 68.50 | E123: 27.40 | F123: 75.40 | G123: 0.9942192979 | H123: 74.9641 | I123: 44.9785 | J123: 72.3785
A124: 132 | B124: 20161083804 | C124: 赵琦 | D124: 75.5 | E124: 30.2 | F124: 缺考
A125: 122 | B125: 20161083819 | C125: 陈晓红 | D125: 73 | E125: 29.2 | F125: 缺考
A126: 133 | B126: 20161083311 | C126: 赵新丽 | D126: 73 | E126: 29.2 | F126: 缺考
A127: 128 | B127: 20161083820 | C127: 梁少丽 | D127: 72.5 | E127: 29 | F127: 缺考
A128: 127 | B128: 20161084122 | C128: 姜南 | D128: 70 | E128: 28 | F128: 缺考
A129: 130 | B129: 20161083728 | C129: 王菊 | D129: 70 | E129: 28 | F129: 缺考
A130: 126 | B130: 20161083730 | C130: 贾西贝 | D130: 69 | E130: 27.6 | F130: 缺考
A131: 123 | B131: 20161083822 | C131: 程伟 | D131: 68 | E131: =D131*0.4 -> 27.2 | F131: 缺考
A132: 125 | B132: 20161083518 | C132: 高倩 | D132: 68 | E132: 27.2 | F132: 缺考
A133: 134 | B133: 20161084126 | C133: 朱勇 | D133: 68 | E133: 27.2 | F133: 缺考
A134: 131 | B134: 20161082811 | C134: 王亚静 | D134: 66.5 | E134: 26.6 | F134: 缺考
A135: 124 | B135: 20161084007 | C135: 高洁 | D135: 66 | E135: 26.4 | F135: 缺考
A136: 129 | B136: 20161083629 | C136: 刘云云 | D136: 66 | E136: 26.4 | F136: 缺考

Sheet 中小学英语
A1: 中 小 学 英 语 总 成 绩
A2: 名次 | B2: 准考证号 | C2: 姓名 | D2: 笔试成绩 | E2: 笔试折合成绩 | F2: 教学技能测试原始成绩 | G2: 加权系数 | H2: 教学技能测试加权成绩 | I2: 教学技能测试加权折合成绩 | J2: 总成绩
A3: 1 | B3: 20162090609 | C3: 秦亚旭 | D3: 85.00 | E3: =D3*0.4 -> 34 | F3: 87.4 | G3: 1.006728375 | H3: =F3*G3 -> 87.9881 | I3: =H3*0.6 -> 52.7928 | J3: =E3+I3 -> 86.7928
A4: 2 | B4: 20162090303 | C4: 胡静静 | D4: 83.00 | E4: =D4*0.4 -> 33.2 | F4: 86.8 | G4: 0.996181763 | H4: 86.4686 | I4: 51.8811 | J4: 85.0811
A5: 3 | B5: 20162090430 | C5: 邵亚歌 | D5: 79.50 | E5: 31.8 | F5: 88 | G5: 0.998380360 | H5: 87.8575 | I5: 52.7145 | J5: 84.5145
A6: 4 | B6: 20162090422 | C6: 王冰冰 | D6: 78.50 | E6: 31.4 | F6: 87.2 | G6: 1.006728375 | H6: 87.7867 | I6: 52.6720 | J6: 84.0720
A7: 5 | B7: 20162091030 | C7: 耿利平 | D7: 79.50 | E7: 31.8 | F7: 85.4 | G7: 1.009111504 | H7: 86.1781 | I7: 51.7069 | J7: 83.5069
A8: 6 | B8: 20162091004 | C8: 郭翠平 | D8: 80.00 | E8: 32 | F8: 86.3 | G8: 0.989846648 | H8: 85.4238 | I8: 51.2543 | J8: 83.2543
A9: 7 | B9: 20162091507 | C9: 孙洁 | D9: 77.50 | E9: 31 | F9: 86 | G9: 1.009111504 | H9: 86.7836 | I9: 52.0702 | J9: 83.0702
A10: 8 | B10: 20162090330 | C10: 王方方 | D10: 78.00 | E10: 31.2 | F10: 87.2 | G10: 0.989846648 | H10: 86.3146 | I10: 51.7888 | J10: 82.9888
A11: 9 | B11: 20162091108 | C11: 吴晓璐 | D11: 73.50 | E11: 29.4 | F11: 89.3 | G11: 0.996181763 | H11: 88.9590 | I11: 53.3754 | J11: 82.7754
A12: 10 | B12: 20162090323 | C12: 郝晓琼 | D12: 82.00 | E12: 32.8 | F12: 83.4 | G12: 0.996181763 | H12: 83.0816 | I12: 49.8489 | J12: 82.6489
A13: 11 | B13: 20162091613 | C13: 吕晓楠 | D13: 79.00 | E13: 31.6 | F13: 84.4 | G13: 1.006728375 | H13: 84.9679 | I13: 50.9807 | J13: 82.5807
A14: 12 | B14: 20162091109 | C14: 高珊 | D14: 79.50 | E14: 31.8 | F14: 84.6 | G14: 0.996181763 | H14: 84.2770 | I14: 50.5662 | J14: 82.3662
A15: 13 | B15: 20162091118 | C15: 高晓攀 | D15: 82.50 | E15: 33 | F15: 81.4 | G15: 1.009111504 | H15: 82.1417 | I15: 49.2850 | J15: 82.2850
A16: 14 | B16: 20162090925 | C16: 王露敏 | D16: 77.50 | E16: 31 | F16: 86.3 | G16: 0.989846648 | H16: 85.4238 | I16: 51.2543 | J16: 82.2543
A17: 15 | B17: 20162091923 | C17: 殷智楠 | D17: 75.50 | E17: 30.2 | F17: 87 | G17: 0.996181763 | H17: 86.6678 | I17: 52.0007 | J17: 82.2007
A18: 16 | B18: 20162090412 | C18: 王亚丽 | D18: 72.00 | E18: 28.8 | F18: 88 | G18: 1.009111504 | H18: 88.8018 | I18: 53.2811 | J18: 82.0811
A19: 17 | B19: 20162090123 | C19: 景璐璐 | D19: 72.50 | E19: 29 | F19: 87.8 | G19: 1.006728375 | H19: 88.3908 | I19: 53.0345 | J19: 82.0345
A20: 18 | B20: 20162091527 | C20: 马璐 | D20: 72.00 | E20: 28.8 | F20: 88.6 | G20: 0.998380360 | H20: 88.4565 | I20: 53.0739 | J20: 81.8739
A21: 19 | B21: 20162092212 | C21: 方欣欣 | D21: 83.00 | E21: 33.2 | F21: 81.4 | G21: 0.996181763 | H21: 81.0892 | I21: 48.6535 | J21: 81.8535
A22: 20 | B22: 20162090319 | C22: 韩晓燕 | D22: 79.50 | E22: 31.8 | F22: 84 | G22: 0.989846648 | H22: 83.1471 | I22: 49.8883 | J22: 81.6883
A23: 21 | B23: 20162091521 | C23: 刘佳佳 | D23: 76.00 | E23: 30.4 | F23: 85.8 | G23: 0.996181763 | H23: 85.4724 | I23: 51.2834 | J23: 81.6834
A24: 22 | B24: 20162090225 | C24: 张梦银 | D24: 77.50 | E24: 31 | F24: 84.6 | G24: 0.998380360 | H24: 84.4630 | I24: 50.6778 | J24: 81.6778
A25: 23 | B25: 20162091224 | C25: 王燕 | D25: 77.00 | E25: 30.8 | F25: 83.6 | G25: 1.006728375 | H25: 84.1625 | I25: 50.4975 | J25: 81.2975
A26: 24 | B26: 20162091522 | C26: 蔺晓炎 | D26: 74.50 | E26: 29.8 | F26: 85 | G26: 1.009111504 | H26: 85.7745 | I26: 51.4647 | J26: 81.2647
A27: 25 | B27: 20162091526 | C27: 刘雨洁 | D27: 73.50 | E27: 29.4 | F27: 85.8 | G27: 1.006728375 | H27: 86.3773 | I27: 51.8264 | J27: 81.2264
A28: 26 | B28: 20162091228 | C28: 景小杰 | D28: 75.00 | E28: 30 | F28: 86 | G28: 0.989846648 | H28: 85.1268 | I28: 51.0761 | J28: 81.0761
A29: 27 | B29: 20162092121 | C29: 李亚雯 | D29: 75.00 | E29: 30 | F29: 83.8 | G29: 1.009111504 | H29: 84.5635 | I29: 50.7381 | J29: 80.7381
A30: 28 | B30: 20162091308 | C30: 赵淑娟 | D30: 80.50 | E30: 32.2 | F30: 81 | G30: 0.996181763 | H30: 80.6907 | I30: 48.4144 | J30: 80.6144
A31: 29 | B31: 20162090126 | C31: 吕金锋 | D31: 75.00 | E31: 30 | F31: 83.6 | G31: 1.006728375 | H31: 84.1625 | I31: 50.4975 | J31: 80.4975
A32: 30 | B32: 20162090305 | C32: 刘婷婷 | D32: 72.50 | E32: 29 | F32: 85 | G32: 1.009111504 | H32: 85.7745 | I32: 51.4647 | J32: 80.4647
A33: 31 | B33: 20162090528 | C33: 刘晓丹 | D33: 75.00 | E33: 30 | F33: 84.9 | G33: 0.989846648 | H33: 84.0380 | I33: 50.4228 | J33: 80.4228
A34: 32 | B34: 20162090517 | C34: 何照星 | D34: 74.50 | E34: 29.8 | F34: 83.8 | G34: 1.006728375 | H34: 84.3638 | I34: 50.6183 | J34: 80.4183
A35: 33 | B35: 20162090520 | C35: 唐雪冬 | D35: 69.50 | E35: 27.8 | F35: 87.6 | G35: 0.998380360 | H35: 87.4581 | I35: 52.4749 | J35: 80.2749
A36: 34 | B36: 20162090506 | C36: 刘淑博 | D36: 75.00 | E36: =D36*0.4 -> 30 | F36: 83 | G36: 1.009111504 | H36: 83.7563 | I36: 50.2538 | J36: 80.2538
A37: 35 | B37: 20162091110 | C37: 冯颖晓 | D37: 70.00 | E37: 28 | F37: 87.4 | G37: 0.996181763 | H37: 87.0663 | I37: 52.2398 | J37: 80.2398
A38: 36 | B38: 20162090101 | C38: 靳珊珊 | D38: 70.00 | E38: 28 | F38: 87.1 | G38: 0.998380360 | H38: 86.9589 | I38: 52.1754 | J38: 80.1754
A39: 37 | B39: 20162090222 | C39: 梁桂丽 | D39: 73.50 | E39: 29.4 | F39: 84.5 | G39: 0.998380360 | H39: 84.3631 | I39: 50.6179 | J39: 80.0179
A40: 38 | B40: 20162091714 | C40: 张丽丽 | D40: 72.00 | E40: 28.8 | F40: 86.2 | G40: 0.989846648 | H40: 85.3248 | I40: 51.1949 | J40: 79.9949
A41: 39 | B41: 20162091918 | C41: 王晓阳 | D41: 71.50 | E41: 28.6 | F41: 85.7 | G41: 0.998380360 | H41: 85.5612 | I41: 51.3367 | J41: 79.9367
A42: 40 | B42: 20162091715 | C42: 李晓丹 | D42: 72.50 | E42: 29 | F42: 85.7 | G42: 0.989846648 | H42: 84.8299 | I42: 50.8979 | J42: 79.8979
A43: 41 | B43: 20162090503 | C43: 胡亚鸽 | D43: 70.00 | E43: 28 | F43: 86.6 | G43: 0.998380360 | H43: 86.4597 | I43: 51.8758 | J43: 79.8758
A44: 42 | B44: 20162090219 | C44: 王宇博 | D44: 73.00 | E44: 29.2 | F44: 83.8 | G44: 1.006728375 | H44: 84.3638 | I44: 50.6183 | J44: 79.8183
A45: 43 | B45: 20162091411 | C45: 王静 | D45: 71.50 | E45: 28.6 | F45: 86.2 | G45: 0.989846648 | H45: 85.3248 | I45: 51.1949 | J45: 79.7949
A46: 44 | B46: 20162091229 | C46: 张鐿镪 | D46: 72.50 | E46: 29 | F46: 85.3 | G46: 0.989846648 | H46: 84.4339 | I46: 50.6604 | J46: 79.6604
A47: 45 | B47: 20162091509 | C47: 李晓丹 | D47: 74.00 | E47: 29.6 | F47: 82.6 | G47: 1.009111504 | H47: 83.3526 | I47: 50.0116 | J47: 79.6116
A48: 46 | B48: 20162090703 | C48: 王贝 | D48: 77.00 | E48: 30.8 | F48: 80.8 | G48: 1.006728375 | H48: 81.3437 | I48: 48.8062 | J48: 79.6062
A49: 47 | B49: 20162090527 | C49: 李铭铭 | D49: 74.00 | E49: 29.6 | F49: 84.1 | G49: 0.989846648 | H49: 83.2461 | I49: 49.9477 | J49: 79.5477
A50: 48 | B50: 20162092021 | C50: 马海燕 | D50: 79.50 | E50: 31.8 | F50: 78.8 | G50: 1.009111504 | H50: 79.5180 | I50: 47.7108 | J50: 79.5108
A51: 49 | B51: 20162090215 | C51: 景雅萍 | D51: 71.00 | E51: 28.4 | F51: 85.4 | G51: 0.996181763 | H51: 85.0739 | I51: 51.0444 | J51: 79.4444
A52: 50 | B52: 20162090512 | C52: 雷论晓 | D52: 72.50 | E52: 29 | F52: 84.2 | G52: 0.998380360 | H52: 84.0636 | I52: 50.4382 | J52: 79.4382
A53: 51 | B53: 20162090719 | C53: 曹韵 | D53: 79.00 | E53: 31.6 | F53: 80.5 | G53: 0.989846648 | H53: 79.6827 | I53: 47.8096 | J53: 79.4096
A54: 52 | B54: 20162090822 | C54: 梁桃丽 | D54: 76.00 | E54: 30.4 | F54: 82.5 | G54: 0.989846648 | H54: 81.6623 | I54: 48.9974 | J54: 79.3974
A55: 53 | B55: 20162091408 | C55: 王亚波 | D55: 71.00 | E55: 28.4 | F55: 84 | G55: 1.009111504 | H55: 84.7654 | I55: 50.8592 | J55: 79.2592
A56: 54 | B56: 20162091803 | C56: 凌怡蕊 | D56: 75.00 | E56: 30 | F56: 81.4 | G56: 1.006728375 | H56: 81.9477 | I56: 49.1686 | J56: 79.1686
A57: 55 | B57: 20162091106 | C57: 戚君丽 | D57: 71.50 | E57: 28.6 | F57: 84.4 | G57: 0.998380360 | H57: 84.2633 | I57: 50.5580 | J57: 79.1580
A58: 56 | B58: 20162092104 | C58: 任静怡 | D58: 72.00 | E58: 28.8 | F58: 84.2 | G58: 0.996181763 | H58: 83.8785 | I58: 50.3271 | J58: 79.1271
A59: 57 | B59: 20162090818 | C59: 赵洪娜 | D59: 71.50 | E59: 28.6 | F59: 83.6 | G59: 1.006728375 | H59: 84.1625 | I59: 50.4975 | J59: 79.0975
A60: 58 | B60: 20162091128 | C60: 程梦娇 | D60: 71.00 | E60: 28.4 | F60: 85.2 | G60: 0.989846648 | H60: 84.3349 | I60: 50.6010 | J60: 79.0010
A61: 59 | B61: 20162091221 | C61: 赵倩莹 | D61: 72.00 | E61: 28.8 | F61: 84.3 | G61: 0.989846648 | H61: 83.4441 | I61: 50.0664 | J61: 78.8664
A62: 60 | B62: 20162091622 | C62: 张敏敏 | D62: 72.00 | E62: 28.8 | F62: 82.8 | G62: 1.006728375 | H62: 83.3571 | I62: 50.0143 | J62: 78.8143
A63: 61 | B63: 20162091614 | C63: 贾婷婷 | D63: 72.00 | E63: 28.8 | F63: 83.4 | G63: 0.998380360 | H63: 83.2649 | I63: 49.9590 | J63: 78.7590
A64: 62 | B64: 20162090226 | C64: 包丽娟 | D64: 70.50 | E64: 28.2 | F64: 84.4 | G64: 0.998380360 | H64: 84.2633 | I64: 50.5580 | J64: 78.7580
A65: 63 | B65: 20162090409 | C65: 魏丽丽 | D65: 76.00 | E65: 30.4 | F65: 81.4 | G65: 0.989846648 | H65: 80.5735 | I65: 48.3441 | J65: 78.7441
A66: 64 | B66: 20162090502 | C66: 袁莹莹 | D66: 73.00 | E66: 29.2 | F66: 81.8 | G66: 1.006728375 | H66: 82.3504 | I66: 49.4102 | J66: 78.6102
A67: 65 | B67: 20162091610 | C67: 史广雯 | D67: 73.00 | E67: 29.2 | F67: 81.6 | G67: 1.006728375 | H67: =F67*G67 -> 82.1490 | I67: =H67*0.6 -> 49.2894 | J67: =E67+I67 -> 78.4894
A68: 66 | B68: 20162090314 | C68: 高亚飞 | D68: 71.50 | E68: =D68*0.4 -> 28.6 | F68: 83.9 | G68: 0.989846648 | H68: 83.0481 | I68: 49.8289 | J68: 78.4289
A69: 67 | B69: 20162091205 | C69: 李丹丹 | D69: 75.50 | E69: 30.2 | F69: 81.2 | G69: 0.989846648 | H69: 80.3755 | I69: 48.2253 | J69: 78.4253
A70: 68 | B70: 20162091011 | C70: 苗丽芝 | D70: 70.50 | E70: 28.2 | F70: 84.2 | G70: 0.989846648 | H70: 83.3451 | I70: 50.0071 | J70: 78.2071
A71: 69 | B71: 20162090206 | C71: 杨春草 | D71: 71.00 | E71: 28.4 | F71: 83.1 | G71: 0.998380360 | H71: 82.9654 | I71: 49.7792 | J71: 78.1792
A72: 70 | B72: 20162090615 | C72: 张洋洋 | D72: 74.50 | E72: 29.8 | F72: 80.6 | G72: 0.998380360 | H72: 80.4695 | I72: 48.2817 | J72: 78.0817
A73: 71 | B73: 20162090817 | C73: 赵帅培 | D73: 71.50 | E73: 28.6 | F73: 82.6 | G73: 0.998380360 | H73: 82.4662 | I73: 49.4797 | J73: 78.0797
A74: 72 | B74: 20162090203 | C74: 吕茹 | D74: 81.00 | E74: 32.4 | F74: 75.4 | G74: 1.006728375 | H74: 75.9073 | I74: 45.5444 | J74: 77.9444
A75: 73 | B75: 20162091603 | C75: 蔡晓兰 | D75: 70.00 | E75: 28 | F75: 83.8 | G75: 0.989846648 | H75: 82.9491 | I75: 49.7695 | J75: 77.7695
A76: 74 | B76: 20162092014 | C76: 冷美玲 | D76: 73.00 | E76: 29.2 | F76: 81.2 | G76: 0.996181763 | H76: 80.8900 | I76: 48.5340 | J76: 77.7340
A77: 75 | B77: 20162092208 | C77: 孟慧慧 | D77: 72.00 | E77: 28.8 | F77: 81 | G77: 1.006728375 | H77: 81.5450 | I77: 48.9270 | J77: 77.7270
A78: 76 | B78: 20162091703 | C78: 赵义凡 | D78: 73.50 | E78: 29.4 | F78: 80.6 | G78: 0.998380360 | H78: 80.4695 | I78: 48.2817 | J78: 77.6817
A79: 77 | B79: 20162091619 | C79: 张菲菲 | D79: 70.50 | E79: 28.2 | F79: 81.6 | G79: 1.009111504 | H79: 82.3435 | I79: 49.4061 | J79: 77.6061
A80: 78 | B80: 20162090721 | C80: 王逸倩 | D80: 73.50 | E80: 29.4 | F80: 80.6 | G80: 0.996181763 | H80: 80.2923 | I80: 48.1754 | J80: 77.5754
A81: 79 | B81: 20162091125 | C81: 李晓然 | D81: 73.50 | E81: 29.4 | F81: 80.6 | G81: 0.996181763 | H81: 80.2923 | I81: 48.1754 | J81: 77.5754
A82: 80 | B82: 20162091804 | C82: 曹姗姗 | D82: 77.50 | E82: 31 | F82: 77.6 | G82: 0.996181763 | H82: 77.3037 | I82: 46.3822 | J82: 77.3822
A83: 81 | B83: 20162091120 | C83: 吴梦柯 | D83: 70.50 | E83: 28.2 | F83: 82.2 | G83: 0.996181763 | H83: 81.8861 | I83: 49.1317 | J83: 77.3317
A84: 82 | B84: 20162091921 | C84: 任梅博 | D84: 70.00 | E84: 28 | F84: 81.4 | G84: 1.006728375 | H84: 81.9477 | I84: 49.1686 | J84: 77.1686
A85: 83 | B85: 20162091225 | C85: 丁夏琼 | D85: 72.50 | E85: 29 | F85: 79.6 | G85: 1.006728375 | H85: 80.1356 | I85: 48.0813 | J85: 77.0813
A86: 84 | B86: 20162091504 | C86: 孙飞飞 | D86: 71.00 | E86: 28.4 | F86: 81.2 | G86: 0.998380360 | H86: 81.0685 | I86: 48.6411 | J86: 77.0411
A87: 85 | B87: 20162090902 | C87: 杜明瑶 | D87: 70.50 | E87: 28.2 | F87: 81.4 | G87: 0.998380360 | H87: 81.2682 | I87: 48.7609 | J87: 76.9609
A88: 86 | B88: 20162090504 | C88: 赵晓兰 | D88: 70.50 | E88: 28.2 | F88: 81.7 | G88: 0.989846648 | H88: 80.8705 | I88: 48.5223 | J88: 76.7223
A89: 87 | B89: 20162091601 | C89: 常美红 | D89: 73.00 | E89: 29.2 | F89: 79.9 | G89: 0.989846648 | H89: 79.0887 | I89: 47.4532 | J89: 76.6532
A90: 88 | B90: 20162091230 | C90: 王萌 | D90: 69.50 | E90: 27.8 | F90: 82.1 | G90: 0.989846648 | H90: 81.2664 | I90: 48.7598 | J90: 76.5598
A91: 89 | B91: 20162092018 | C91: 刘家欣 | D91: 70.50 | E91: 28.2 | F91: 81.4 | G91: 0.989846648 | H91: 80.5735 | I91: 48.3441 | J91: 76.5441
A92: 90 | B92: 20162091530 | C92: 吴肖平 | D92: 69.50 | E92: 27.8 | F92: 81.4 | G92: 0.996181763 | H92: 81.0892 | I92: 48.6535 | J92: 76.4535
A93: 91 | B93: 20162091605 | C93: 曹盼盼 | D93: 69.50 | E93: 27.8 | F93: 81.2 | G93: 0.998380360 | H93: 81.0685 | I93: 48.6411 | J93: 76.4411
A94: 92 | B94: 20162091005 | C94: 马茹楠 | D94: 70.50 | E94: 28.2 | F94: 79.8 | G94: 1.006728375 | H94: 80.3369 | I94: 48.2022 | J94: 76.4022
A95: 93 | B95: 20162092216 | C95: 高鹏 | D95: 73.50 | E95: 29.4 | F95: 78.4 | G95: 0.996181763 | H95: 78.1007 | I95: 46.8604 | J95: 76.2604
A96: 94 | B96: 20162091009 | C96: 原静静 | D96: 74.50 | E96: 29.8 | F96: 76.6 | G96: 1.009111504 | H96: 77.2979 | I96: 46.3788 | J96: 76.1788
A97: 95 | B97: 20162091926 | C97: 袁媛 | D97: 71.50 | E97: 28.6 | F97: 78.6 | G97: 1.006728375 | H97: 79.1289 | I97: 47.4773 | J97: 76.0773
A98: 96 | B98: 20162092126 | C98: 张海云 | D98: 74.50 | E98: 29.8 | F98: 77.2 | G98: 0.998380360 | H98: 77.0750 | I98: 46.2450 | J98: 76.0450
A99: 97 | B99: 20162091210 | C99: 郭雪曼 | D99: 70.50 | E99: 28.2 | F99: 80 | G99: 0.989846648 | H99: 79.1877 | I99: 47.5126 | J99: 75.7126
A100: 98 | B100: 20162091306 | C100: 王延旭 | D100: 72.00 | E100: 28.8 | F100: 77.4 | G100: 1.009111504 | H100: 78.1052 | I100: 46.8631 | J100: 75.6631
A101: 99 | B101: 20162090603 | C101: 王俊楠 | D101: 70.50 | E101: 28.2 | F101: 79.2 | G101: 0.996181763 | H101: 78.8976 | I101: 47.3386 | J101: 75.5386
A102: 100 | B102: 20162092210 | C102: 陈翠玲 | D102: 71.00 | E102: 28.4 | F102: 77.8 | G102: 1.009111504 | H102: 78.5089 | I102: 47.1053 | J102: 75.5053
A103: 101 | B103: 20162091305 | C103: 陈艳姣 | D103: 74.00 | E103: 29.6 | F103: 76.2 | G103: 0.998380360 | H103: 76.0766 | I103: 45.6460 | J103: 75.2460
A104: 102 | B104: 20162092127 | C104: 刘晓娜 | D104: 71.50 | E104: 28.6 | F104: 77.2 | G104: 1.006728375 | H104: 77.7194 | I104: 46.6317 | J104: 75.2317
A105: 103 | B105: 20162090207 | C105: 张雅莉 | D105: 70.50 | E105: 28.2 | F105: 78.2 | G105: 0.998380360 | H105: 78.0733 | I105: 46.8440 | J105: 75.0440
A106: 104 | B106: 20162091317 | C106: 李文慧 | D106: 70.00 | E106: 28 | F106: 77.2 | G106: 1.006728375 | H106: 77.7194 | I106: 46.6317 | J106: 74.6317
A107: 105 | B107: 20162091628 | C107: 夏李霞 | D107: 69.50 | E107: 27.8 | F107: 78.2 | G107: 0.989846648 | H107: 77.4060 | I107: 46.4436 | J107: 74.2436
A108: 106 | B108: 20162091529 | C108: 宋意娴 | D108: 71.00 | E108: 28.4 | F108: 75 | G108: 1.009111504 | H108: 75.6834 | I108: 45.4100 | J108: 73.8100
A109: 107 | B109: 20162090327 | C109: 李淑纳 | D109: 72.00 | E109: 28.8 | F109: 74 | G109: 0.998380360 | H109: 73.8801 | I109: 44.3281 | J109: 73.1281
A110: 108 | B110: 20162091909 | C110: 李静 | D110: 83 | E110: 33.2 | F110: 缺考
A111: 109 | B111: 20162091808 | C111: 赵婕 | D111: 77.5 | E111: 31 | F111: 缺考
A112: 110 | B112: 20162091525 | C112: 张笑笑 | D112: 77 | E112: 30.8 | F112: 缺考
A113: 111 | B113: 20162091010 | C113: 程甜甜 | D113: 75.5 | E113: 30.2 | F113: 缺考
A114: 112 | B114: 20162092203 | C114: 危敏 | D114: 74.5 | E114: 29.8 | F114: 缺考
A115: 113 | B115: 20162091809 | C115: 康加幸 | D115: 73.5 | E115: 29.4 | F115: 缺考
A116: 114 | B116: 20162090421 | C116: 冯莹娟 | D116: 73 | E116: 29.2 | F116: 缺考
A117: 115 | B117: 20162091425 | C117: 马卫卫 | D117: 72.5 | E117: 29 | F117: 缺考
A118: 116 | B118: 20162091626 | C118: 韩萌萌 | D118: 72 | E118: 28.8 | F118: 缺考
A119: 117 | B119: 20162091908 | C119: 肖莹莹 | D119: 72 | E119: 28.8 | F119: 缺考
A120: 118 | B120: 20162092026 | C120: 杨佳乐 | D120: 72 | E120: 28.8 | F120: 缺考
A121: 119 | B121: 20162090111 | C121: 赵晓艳 | D121: 71.5 | E121: 28.6 | F121: 缺考
A122: 120 | B122: 20162091914 | C122: 杨曙光 | D122: 70.5 | E122: 28.2 | F122: 缺考
A123: 121 | B123: 20162090806 | C123: 徐培兰 | D123: 70 | E123: 28 | F123: 缺考
A124: 122 | B124: 20162091928 | C124: 朱佳佳 | D124: 70 | E124: 28 | F124: 缺考
A125: 123 | B125: 20162092112 | C125: 马晓迎 | D125: 69.5 | E125: 27.8 | F125: 缺考
A126: 124 | B126: 20162090924 | C126: 莫留洋 | D126: 69.5 | E126: 27.8 | F126: 缺考
A127: 125 | B127: 20162092128 | C127: 王翠丽 | D127: 69.5 | E127: 27.8 | F127: 缺考
A128: 126 | B128: 20162091202 | C128: 昝亚南 | D128: 69.5 | E128: 27.8 | F128: 缺考
A129: 127 | B129: 20162090523 | C129: 张璐 | D129: 69.5 | E129: 27.8 | F129: 缺考

Sheet 中小学生物
A1: 中 小 学 生 物 总 成 绩
A2: 名次 | B2: 准考证号 | C2: 姓名 | D2: 笔试成绩 | E2: 笔试折合成绩 | F2: 教学技能测试原始成绩 | G2: 加权系数 | H2: 教学技能测试加权成绩 | I2: 教学技能测试加权折合成绩 | J2: 总成绩
A3: 1 | B3: 20162122614 | C3: 王丹丹 | D3: 75.50 | E3: =D3*0.4 -> 30.2 | F3: 85.8 | G3: 0.994774331 | H3: =F3*G3 -> 85.3516 | I3: =H3*0.6 -> 51.2110 | J3: =E3+I3 -> 81.4110
A4: 2 | B4: 20162122517 | C4: 刘莹莹 | D4: 74.00 | E4: =D4*0.4 -> 29.6 | F4: 84.6 | G4: 0.994774331 | H4: 84.1579 | I4: 50.4947 | J4: 80.0947
A5: 3 | B5: 20162122513 | C5: 张佳铭 | D5: 74.00 | E5: 29.6 | F5: 84.2 | G5: 0.994774331 | H5: 83.7600 | I5: 50.2560 | J5: 79.8560
A6: 4 | B6: 20162122605 | C6: 李杰 | D6: 71.50 | E6: 28.6 | F6: 85.6 | G6: 0.994774331 | H6: 85.1527 | I6: 51.0916 | J6: 79.6916
A7: 5 | B7: 20162122524 | C7: 弋慧凯 | D7: 70.50 | E7: 28.2 | F7: 84.4 | G7: 1.005280861 | H7: 84.8457 | I7: 50.9074 | J7: 79.1074
A8: 6 | B8: 20162122511 | C8: 张迎丽 | D8: 66.50 | E8: 26.6 | F8: 86.6 | G8: 1.005280861 | H8: 87.0573 | I8: 52.2344 | J8: 78.8344
A9: 7 | B9: 20162122608 | C9: 范亚珍 | D9: 68.00 | E9: 27.2 | F9: 85.8 | G9: 0.994774331 | H9: 85.3516 | I9: 51.2110 | J9: 78.4110
A10: 8 | B10: 20162122525 | C10: 李红卫 | D10: 66.50 | E10: 26.6 | F10: 84.4 | G10: 1.005280861 | H10: 84.8457 | I10: 50.9074 | J10: 77.5074
A11: 9 | B11: 20162122530 | C11: 郭亚楠 | D11: 71.50 | E11: 28.6 | F11: 81.4 | G11: 0.994774331 | H11: 80.9746 | I11: 48.5848 | J11: 77.1848
A12: 10 | B12: 20162122607 | C12: 李东旭 | D12: 71.00 | E12: 28.4 | F12: 81.4 | G12: 0.994774331 | H12: 80.9746 | I12: 48.5848 | J12: 76.9848
A13: 11 | B13: 20162122603 | C13: 杨兰 | D13: 69.00 | E13: 27.6 | F13: 79.6 | G13: 1.005280861 | H13: 80.0204 | I13: 48.0122 | J13: 75.6122
A14: 12 | B14: 20162122512 | C14: 李慧娜 | D14: 68.50 | E14: 27.4 | F14: 80.2 | G14: 0.994774331 | H14: 79.7809 | I14: 47.8685 | J14: 75.2685
A15: 13 | B15: 20162122611 | C15: 高辉娟 | D15: 67.50 | E15: 27 | F15: 79.8 | G15: 1.005280861 | H15: 80.2214 | I15: 48.1328 | J15: 75.1328
A16: 14 | B16: 20162122610 | C16: 侯小妮 | D16: 68.00 | E16: 27.2 | F16: 78.8 | G16: 1.005280861 | H16: 79.2161 | I16: 47.5297 | J16: 74.7297
A17: 15 | B17: 20162122526 | C17: 雷霞飞 | D17: 70.5 | E17: 28.2 | F17: 缺考

Sheet 中小学物理
A1: 中 小 学 物 理 总 成 绩
A2: 名次 | B2: 准考证号 | C2: 姓名 | D2: 笔试成绩 | E2: 笔试折合成绩 | F2: 教学技能测试原始成绩 | G2: 教学技能测试折合成绩 | H2: 总成绩
A3: 1 | B3: 20162102304 | C3: 李傲竹 | D3: 71.00 | E3: =D3*0.4 -> 28.4 | F3: 86 | G3: =F3*0.6 -> 51.6 | H3: =E3+G3 -> 80
A4: 2 | B4: 20162102311 | C4: 陈红歌 | D4: 70.00 | E4: =D4*0.4 -> 28 | F4: 85.2 | G4: 51.12 | H4: 79.12
A5: 3 | B5: 20162102224 | C5: 吴炎圭 | D5: 65.00 | E5: 26 | F5: 81.2 | G5: 48.72 | H5: 74.72
A6: 4 | B6: 20162102312 | C6: 张亚丹 | D6: 61.00 | E6: 24.4 | F6: 83.4 | G6: 50.04 | H6: 74.44
A7: 5 | B7: 20162102303 | C7: 高倩楠 | D7: 56.50 | E7: 22.6 | F7: 85.6 | G7: 51.36 | H7: 73.96
A8: 6 | B8: 20162102310 | C8: 申梦洁 | D8: 59.50 | E8: 23.8 | F8: 83.4 | G8: 50.04 | H8: 73.84
A9: 7 | B9: 20162102305 | C9: 李慧星 | D9: 66.50 | E9: 26.6 | F9: 77.4 | G9: 46.44 | H9: 73.04
A10: 8 | B10: 20162102225 | C10: 张春暖 | D10: 64.50 | E10: 25.8 | F10: 78 | G10: 46.8 | H10: 72.6
A11: 9 | B11: 20162102230 | C11: 李晓丹 | D11: 62.00 | E11: 24.8 | F11: 78.6 | G11: 47.16 | H11: 71.96
A12: 10 | B12: 20162102306 | C12: 孙晶晶 | D12: 57.00 | E12: 22.8 | F12: 81.6 | G12: 48.96 | H12: 71.76
A13: 11 | B13: 20162102307 | C13: 张中锴 | D13: 51.50 | E13: 20.6 | F13: 84.6 | G13: 50.76 | H13: 71.36
A14: 12 | B14: 20162102308 | C14: 张晓静 | D14: 61.00 | E14: 24.4 | F14: 77.6 | G14: 46.56 | H14: 70.96
A15: 13 | B15: 20162102313 | C15: 蔡璐瑶 | D15: 60.00 | E15: 24 | F15: 77 | G15: 46.2 | H15: 70.2
A16: 14 | B16: 20162102302 | C16: 王淑阳 | D16: 50.50 | E16: 20.2 | F16: 80.8 | G16: 48.48 | H16: 68.68
A17: 15 | B17: 20162102301 | C17: 郭义霄 | D17: 54.00 | E17: 21.6 | F17: 76.8 | G17: 46.08 | H17: 67.68
A18: 16 | B18: 20162102228 | C18: 张耀东 | D18: 45.00 | E18: 18 | F18: 82.8 | G18: 49.68 | H18: 67.68
A19: 17 | B19: 20162102314 | C19: 刘丽萍 | D19: 48.00 | E19: 19.2 | F19: 78.8 | G19: 47.28 | H19: 66.48
A20: 18 | B20: 20162102226 | C20: 宋路瑶 | D20: 67.50 | E20: 27 | F20: 缺考
A21: 19 | B21: 20162102229 | C21: 赵金阁 | D21: 60.50 | E21: 24.2 | F21: 缺考
A22: 20 | B22: 20162102315 | C22: 耿亚歌 | D22: 60.00 | E22: 24 | F22: 缺考
A23: 21 | B23: 20162102309 | C23: 郭留培 | D23: 55.50 | E23: 22.2 | F23: 缺考

Sheet 中小学化学
A1: 中 小 学 化 学 总 成 绩
A2: 名次 | B2: 准考证号 | C2: 姓名 | D2: 笔试成绩 | E2: 笔试折合成绩 | F2: 教学技能测试原始成绩 | G2: 教学技能测试折合成绩 | H2: 总成绩
A3: 1 | B3: 20162112420 | C3: 刘伟莉 | D3: 78.00 | E3: =D3*0.4 -> 31.2 | F3: 86 | G3: =F3*0.6 -> 51.6 | H3: =E3+G3 -> 82.8
A4: 2 | B4: 20162112317 | C4: 徐雅丹 | D4: 71.50 | E4: =D4*0.4 -> 28.6 | F4: 87.8 | G4: 52.68 | H4: 81.28
A5: 3 | B5: 20162112325 | C5: 董丽洋 | D5: 73.00 | E5: 29.2 | F5: 85.8 | G5: 51.48 | H5: 80.68
A6: 4 | B6: 20162112406 | C6: 刘欢 | D6: 76.00 | E6: 30.4 | F6: 82.2 | G6: 49.32 | H6: 79.72
A7: 5 | B7: 20162112327 | C7: 王芝懿 | D7: 69.50 | E7: 27.8 | F7: 85.2 | G7: 51.12 | H7: 78.92
A8: 6 | B8: 20162112403 | C8: 高晓丽 | D8: 70.50 | E8: 28.2 | F8: 83.4 | G8: 50.04 | H8: 78.24
A9: 7 | B9: 20162112328 | C9: 程鹏月 | D9: 73.50 | E9: 29.4 | F9: 80.8 | G9: 48.48 | H9: 77.88
A10: 8 | B10: 20162112319 | C10: 崔跃男 | D10: 72.00 | E10: 28.8 | F10: 80.8 | G10: 48.48 | H10: 77.28
A11: 9 | B11: 20162112413 | C11: 杨琼 | D11: 72.00 | E11: 28.8 | F11: 79.4 | G11: 47.64 | H11: 76.44
A12: 10 | B12: 20162112415 | C12: 代红莉 | D12: 69.00 | E12: 27.6 | F12: 80.6 | G12: 48.36 | H12: 75.96
A13: 11 | B13: 20162112322 | C13: 张帅杰 | D13: 67.50 | E13: 27 | F13: 81.6 | G13: 48.96 | H13: 75.96
A14: 12 | B14: 20162112318 | C14: 冯兴歌 | D14: 66.50 | E14: 26.6 | F14: 81.6 | G14: 48.96 | H14: 75.56
A15: 13 | B15: 20162112421 | C15: 梁帅芝 | D15: 66.50 | E15: 26.6 | F15: 81.6 | G15: 48.96 | H15: 75.56
A16: 14 | B16: 20162112427 | C16: 郑耀杰 | D16: 70.50 | E16: 28.2 | F16: 78.8 | G16: 47.28 | H16: 75.48
A17: 15 | B17: 20162112423 | C17: 郭睿博 | D17: 65.50 | E17: 26.2 | F17: 80.6 | G17: 48.36 | H17: 74.56
A18: 16 | B18: 20162112329 | C18: 王小丽 | D18: 71.00 | E18: 28.4 | F18: 76.2 | G18: 45.72 | H18: 74.12
A19: 17 | B19: 20162112506 | C19: 张婷婷 | D19: 71.00 | E19: 28.4 | F19: 75 | G19: 45 | H19: 73.4
A20: 18 | B20: 20162112412 | C20: 孙会星 | D20: 66.00 | E20: 26.4 | F20: 75.8 | G20: 45.48 | H20: 71.88
A21: 19 | B21: 20162112419 | C21: 温静静 | D21: 66.00 | E21: 26.4 | F21: 75 | G21: 45 | H21: 71.4
A22: 20 | B22: 20162112510 | C22: 翟宇耀 | D22: 67.50 | E22: 27 | F22: 72 | G22: 43.2 | H22: 70.2
A23: 21 | B23: 20162112507 | C23: 王惠玲 | D23: 77.00 | E23: =D20*0.4 -> 26.4 | F23: 缺考
A24: 22 | B24: 20162112425 | C24: 高赞 | D24: 75.50 | E24: 30.2 | F24: 缺考
A25: 23 | B25: 20162112409 | C25: 王姗姗 | D25: 71.00 | E25: 28.4 | F25: 缺考
A26: 24 | B26: 20162112502 | C26: 杜娜娜 | D26: 66.50 | E26: 26.6 | F26: 缺考

Sheet 中小学体育
A1: 中 小 学 体 育 总 成 绩
A2: 名次 | B2: 准考证号 | C2: 姓名 | D2: 笔试成绩 | E2: 笔试折合成绩 | F2: 教学技能测试原始成绩 | G2: 教学技能测试折合成绩 | H2: 总成绩
A3: 1 | B3: 20162132713 | C3: 邵收仓 | D3: 68.50 | E3: =D3*0.4 -> 27.4 | F3: 88.2 | G3: =F3*0.6 -> 52.92 | H3: =E3+G3 -> 80.32
A4: 2 | B4: 20162132707 | C4: 高银歌 | D4: 74.00 | E4: =D4*0.4 -> 29.6 | F4: 82.6 | G4: =F4*0.6 -> 49.56 | H4: =E4+G4 -> 79.16
A5: 3 | B5: 20162132620 | C5: 高宇飞 | D5: 67.50 | E5: 27 | F5: 83 | G5: 49.8 | H5: 76.8
A6: 4 | B6: 20162132619 | C6: 曾萌萌 | D6: 54.00 | E6: 21.6 | F6: 87.2 | G6: 52.32 | H6: 73.92
A7: 5 | B7: 20162132714 | C7: 孙金鸽 | D7: 74.00 | E7: 29.6 | F7: 72.6 | G7: 43.56 | H7: 73.16
A8: 6 | B8: 20162132629 | C8: 冯培培 | D8: 53.50 | E8: 21.4 | F8: 86 | G8: 51.6 | H8: 73
A9: 7 | B9: 20162132716 | C9: 李雅博 | D9: 52.50 | E9: 21 | F9: 86.2 | G9: 51.72 | H9: 72.72
A10: 8 | B10: 20162132723 | C10: 闫永斌 | D10: 62.50 | E10: 25 | F10: 78 | G10: 46.8 | H10: 71.8
A11: 9 | B11: 20162132628 | C11: 郜元浩 | D11: 53.50 | E11: 21.4 | F11: 83.8 | G11: 50.28 | H11: 71.68
A12: 10 | B12: 20162132623 | C12: 田涛丽 | D12: 60.50 | E12: 24.2 | F12: 78.6 | G12: 47.16 | H12: 71.36
A13: 11 | B13: 20162132703 | C13: 宋远航 | D13: 58.00 | E13: 23.2 | F13: 76.4 | G13: 45.84 | H13: 69.04
A14: 12 | B14: 20162132630 | C14: 蔺永强 | D14: 54.00 | E14: 21.6 | F14: 78.6 | G14: 47.16 | H14: 68.76
A15: 13 | B15: 20162132702 | C15: 李宏晓 | D15: 55.50 | E15: 22.2 | F15: 77.4 | G15: 46.44 | H15: 68.64
A16: 14 | B16: 20162132720 | C16: 吴和伟 | D16: 52.00 | E16: 20.8 | F16: 78 | G16: 46.8 | H16: 67.6
A17: 15 | B17: 20162132712 | C17: 张文龙 | D17: 52.00 | E17: 20.8 | F17: 77.8 | G17: 46.68 | H17: 67.48
A18: 16 | B18: 20162132711 | C18: 常原华 | D18: 52.00 | E18: 20.8 | F18: 75 | G18: 45 | H18: 65.8
A19: 17 | B19: 20162132708 | C19: 常洁 | D19: 57.50 | E19: 23 | F19: 缺考
A20: 18 | B20: 20162132724 | C20: 徐珊珊 | D20: 57.50 | E20: 23 | F20: 缺考

Sheet 中小学音乐
A1: 中 小 学 音 乐 总 成 绩
A2: 名次 | B2: 准考证号 | C2: 姓名 | D2: 笔试成绩 | E2: 笔试折合成绩 | F2: 教学技能测试原始成绩 | G2: 教学技能测试折合成绩 | H2: 总成绩
A3: 1 | B3: 20162142926 | C3: 赵茉丽 | D3: 79.00 | E3: =D3*0.4 -> 31.6 | F3: 84.4 | G3: =F3*0.6 -> 50.64 | H3: =E3+G3 -> 82.24
A4: 2 | B4: 20162142903 | C4: 史佳佳 | D4: 73.00 | E4: 29.2 | F4: 83 | G4: 49.8 | H4: 79
A5: 3 | B5: 20162142915 | C5: 景一淇 | D5: 70.00 | E5: 28 | F5: 83 | G5: 49.8 | H5: 77.8
A6: 4 | B6: 20162142927 | C6: 卢俞含 | D6: 70.00 | E6: 28 | F6: 79.4 | G6: 47.64 | H6: 75.64
A7: 5 | B7: 20162142810 | C7: 张改丽 | D7: 68.50 | E7: 27.4 | F7: 78.8 | G7: 47.28 | H7: 74.68
A8: 6 | B8: 20162142917 | C8: 李梦 | D8: 68.50 | E8: 27.4 | F8: 78.4 | G8: 47.04 | H8: 74.44
A9: 7 | B9: 20162142823 | C9: 张烨 | D9: 76.50 | E9: 30.6 | F9: 缺考

Sheet 中小学美术
A1: 中 小 学 美 术 总 成 绩
A2: 名次 | B2: 准考证号 | C2: 姓名 | D2: 笔试成绩 | E2: 笔试折合成绩 | F2: 教学技能测试原始成绩 | G2: 教学技能测试折合成绩 | H2: 总成绩
A3: 1 | B3: 20162153227 | C3: 郑小娇 | D3: 72.50 | E3: =D3*0.4 -> 29 | F3: 87.7 | G3: =F3*0.6 -> 52.62 | H3: =E3+G3 -> 81.62
A4: 2 | B4: 20162153322 | C4: 韩程瑜 | D4: 78.00 | E4: 31.2 | F4: 82.6 | G4: 49.56 | H4: 80.76
A5: 3 | B5: 20162153009 | C5: 唐园园 | D5: 75.50 | E5: 30.2 | F5: 84.2 | G5: 50.52 | H5: 80.72
A6: 4 | B6: 20162153020 | C6: 赵静静 | D6: 74.50 | E6: 29.8 | F6: 84.7 | G6: 50.82 | H6: 80.62
A7: 5 | B7: 20162153125 | C7: 张雪燕 | D7: 75.50 | E7: 30.2 | F7: 83.8 | G7: 50.28 | H7: 80.48
A8: 6 | B8: 20162153221 | C8: 王艳秋 | D8: 81.00 | E8: 32.4 | F8: 78.1 | G8: 46.86 | H8: 79.26

Sheet 幼教
A1: 幼 教 总 成 绩
A2: 名次 | B2: 准考证号 | C2: 姓名 | D2: 笔试成绩 | E2: 笔试折合成绩 | F2: 教学技能测试原始成绩 | G2: 教学技能测试折合成绩 | H2: 总成绩
A3: 1 | B3: 20162163628 | C3: 张西敏 | D3: 79.50 | E3: =D3*0.4 -> 31.8 | F3: 83.6 | G3: =F3*0.6 -> 50.16 | H3: =E3+G3 -> 81.96
A4: 2 | B4: 20162163516 | C4: 曼伟萍 | D4: 71.50 | E4: =D4*0.4 -> 28.6 | F4: 88.2 | G4: =F4*0.6 -> 52.92 | H4: =E4+G4 -> 81.52
A5: 3 | B5: 20162163418 | C5: 崔晓婷 | D5: 69.50 | E5: 27.8 | F5: 89.3 | G5: 53.58 | H5: 81.38
A6: 4 | B6: 20162163513 | C6: 冯润芝 | D6: 73.50 | E6: 29.4 | F6: 85.9 | G6: 51.54 | H6: 80.94
A7: 5 | B7: 20162163705 | C7: 申淑洁 | D7: 69.00 | E7: 27.6 | F7: 87.4 | G7: 52.44 | H7: 80.04
A8: 6 | B8: 20162163324 | C8: 王哲 | D8: 71.00 | E8: 28.4 | F8: 86 | G8: 51.6 | H8: 80
A9: 7 | B9: 20162163420 | C9: 楚潇潇 | D9: 71.50 | E9: 28.6 | F9: 85.2 | G9: 51.12 | H9: 79.72
A10: 8 | B10: 20162163718 | C10: 张艺伟 | D10: 68.00 | E10: 27.2 | F10: 87.3 | G10: 52.38 | H10: 79.58
A11: 9 | B11: 20162163623 | C11: 马浩钧 | D11: 68.50 | E11: 27.4 | F11: 86.8 | G11: 52.08 | H11: 79.48
A12: 10 | B12: 20162163404 | C12: 韩白婷 | D12: 72.00 | E12: 28.8 | F12: 81.2 | G12: 48.72 | H12: 77.52
A13: 11 | B13: 20162163807 | C13: 李蕾帆 | D13: 69.00 | E13: 27.6 | F13: 82.7 | G13: 49.62 | H13: 77.22
A14: 12 | B14: 20162163329 | C14: 吕颍楠 | D14: 67.50 | E14: 27 | F14: 82.4 | G14: 49.44 | H14: 76.44
A15: 13 | B15: 20162163421 | C15: 王贝贝 | D15: 67.50 | E15: 27 | F15: 78.2 | G15: 46.92 | H15: 73.92
A16: 14 | B16: 20162163703 | C16: 李亚姣 | D16: 66.00 | E16: 26.4 | F16: 76.6 | G16: 45.96 | H16: 72.36
A17: 15 | B17: 20162163323 | C17: 徐景浩 | D17: 70.00 | E17: 28 | F17: 缺考

Sheet 特教
A1: 特 殊 教 育 总 成 绩
A2: 名次 | B2: 准考证号 | C2: 姓名 | D2: 笔试成绩 | E2: 笔试折合成绩 | F2: 教学技能测试原始成绩 | G2: 教学技能测试折合成绩 | H2: 总成绩
A3: 1 | B3: 20162173828 | C3: 丁宇岚 | D3: 67.00 | E3: =D3*0.4 -> 26.8 | F3: 88.1 | G3: =F3*0.6 -> 52.86 | H3: =E3+G3 -> 79.66
A4: 2 | B4: 20162173902 | C4: 欧阳发明 | D4: 68.00 | E4: =D4*0.4 -> 27.2 | F4: 80.7 | G4: =F4*0.6 -> 48.42 | H4: =E4+G4 -> 75.62
A5: 3 | B5: 20162173901 | C5: 马素晓 | D5: 62.50 | E5: =D5*0.4 -> 25 | F5: 83 | G5: =F5*0.6 -> 49.8 | H5: =E5+G5 -> 74.8
